Cogmind - Beta 11 X6 @@@ ROGUE MODE // 2021.08.14 @ 13:48:25 Player: Cargo Storage DM RIF Result: Self-destructed Performance ------------- Evolutions (9) 4500 Regions Visited (33) 6600 Robots Destroyed (481) 2405 Value Destroyed (27012) 27012 Prototype IDs (79) 1580 Alien Tech Used (11) 2200 Bonus (31125) 31125 TOTAL SCORE: 75422 Bonus ------- High Alert Combat Kills 2326 Follower Combat Kills 2377 Entered Garrisons 1800 Used RIF Installer 4500 Met Data Miner 300 Scanned by Researcher 500 Destroyed MAIN.C Guards 500 Met MAIN.C 5000 Destroyed MAIN.C Shell 5000 Destroyed MAIN.C 10000 Met Architect 300 Destroyed A8 300 Destroyed A6 400 Friendly Fire -2178 Cogmind --------- Core Integrity 574/1600 Matter 300/300 Energy 350/350 System Corruption 30% Temperature Cool (0) Movement Treading (170) Location -1/Access_0 Parts ------- > --- POWER (3) -------- Quantum Reactor > --- PROPULSION (8) --- Armored Medium Treads Armored Heavy Treads Experimental Biometal Leg > --- UTILITY (12) ----- Desublimator Desublimator Experimental Targeting Computer Experimental Targeting Computer Experimental Targeting Computer Experimental Targeting Computer Experimental Targeting Computer Experimental Armor Integrity Analyzer Experimental Weapon Cycler Matter Drive > --- WEAPON (2) ------- Perforator > --- INVENTORY (7) ---- Experimental Matter Compressor (149) Omega Cannon Peak State ------------ > --- POWER ------------ Quantum Reactor Vortex Chain Reactor > --- PROPULSION ------- Biometal Heavy Treads Biometal Heavy Treads Biometal Heavy Treads Enhanced Armored Heavy Treads > --- UTILITY ---------- Experimental Cooling System Cargo Storage Unit Experimental Energy Well Experimental Targeting Computer Experimental Transmission Jammer Improved Core Shielding Experimental Thermal Shield EM Disruption Field Experimental Force Field Matter Drive > --- WEAPON ----------- Omega Cannon > --- INVENTORY -------- Biometal Heavy Treads Advanced Heavy Siege Treads Experimental Cooling System Experimental Cooling System Experimental Cooling System Experimental Coolant Injector Experimental Energy Well Medium Matter Pod Energy Filter Improved Focal Shield Experimental Force Field System Restoration Module Long-range Tractor Beam Advanced Drone Bay Transdimensional Reconstructor Integrity Redistributor Integrity Redistributor Matter Drive Heavy Disruptor Cannon Potential Cannon Graviton Cannon Graviton Cannon Perforator [Rating: 250] Favorites ----------- Power Quantum Reactor Engine Heavy Ion Engine Power Core Micro Fission Core Reactor Quantum Reactor Propulsion Biometal Heavy Treads Treads Biometal Heavy Treads Leg Advanced Myomer Leg Wheel Armored Wheel Utility Experimental Targeting Computer Device Experimental Force Field Storage Cargo Storage Unit Processor Experimental Targeting Computer Hackware Relay Coupler [Swarmer] Protection Improved Core Shielding Artifact Matter Drive Weapon Improved Assault Rifle Energy Gun Improved Spread Laser Energy Cannon Nova Cannon Ballistic Gun Improved Assault Rifle Ballistic Cannon Omega Cannon Launcher Mini Grenade Launcher Special Weapon Improved Remote Datajack Slashing Weapon Chainsword Special Melee Weapon Advanced Datajack Build | -11 -10 -10 -9 -9 -9 -8 -8 -7 -7 -7 -7 -6 -6 -6 -6 -6 -5 -5 -4 -4 -4 -4 -3 -3 -3 -3 -3 -2 -2 -2 -1 -1 -1 ------- Run | Scr Mat Min Mat Sto Gar Mat Gar Fac Low Low Dat Pro Fac Gar Fac Gar Fac Gar Fac Gar Fac Gar Res Gar Res Qua Gar Res Tes Sec Acc Com Ac0 Slots Evolved 18 | . . . 2 . . 2 . 2 . . . . 2 . . . 2 . 2 . . . 2 . . . . 2 . . 2 . . Power 2 | . . . . . . . . . . . . . . . . . . . . . . . 1 . . . . . . . 1 . . Propulsion 6 | . . . . . . . . 2 . . . . 1 . . . 1 . . . . . . . . . . 2 . . . . . Utility 10 | . . . 1 . . 2 . . . . . . 1 . . . 1 . 1 . . . 1 . . . . . . . 3 . . Weapon . | . . . 1 . . . . . . . . . . . . . . . 1 . . . . . . . . . . . -2 . . Parts Attached 922 | 11 24 24 13 41 6 29 3 38 . 2 . 2 16 18 . 22 11 26 36 45 31 54 11 19 22 11 21 12 41 77 58 130 68 Power 49 | 1 3 3 1 3 . 1 . 3 . . . . . 1 . 1 2 1 2 . 1 1 2 . . . 3 . 4 5 3 3 5 Engine 13 | 1 3 3 1 3 . . . . . . . . . . . . 2 . . . . . . . . . . . . . . . . Core 11 | . . . . . . 1 . 3 . . . . . 1 . . . 1 2 . 1 1 1 . . . . . . . . . . Reactor 25 | . . . . . . . . . . . . . . . . 1 . . . . . . 1 . . . 3 . 4 5 3 3 5 Propulsion 136 | 4 6 10 4 3 4 5 . 2 . . . . 3 1 . . 2 2 7 6 4 19 2 2 5 . 2 1 5 7 8 9 13 Treads 58 | 2 4 6 2 1 2 1 . . . . . . 1 . . . . . 1 . . 2 2 . 2 . 2 1 5 1 4 9 10 Leg 41 | 2 2 4 . . . . . . . . . . . . . . 2 . 6 6 4 8 . . . . . . . 2 2 . 3 Wheel 37 | . . . 2 2 2 4 . 2 . . . . 2 1 . . . 2 . . . 9 . 2 3 . . . . 4 2 . . Hover . | . . . . . . . . . . . . . . . . . . . . . . . . . . . . . . . . . . Flight . | . . . . . . . . . . . . . . . . . . . . . . . . . . . . . . . . . . Utility 380 | 3 5 3 5 11 2 11 2 17 . . . 2 7 5 . 6 4 7 11 16 14 14 6 10 8 5 3 3 19 32 34 86 29 Device 195 | 2 2 . 1 5 1 4 2 8 . . . 1 2 2 . 2 3 2 6 6 5 7 2 2 5 4 1 3 13 19 24 44 17 Storage 32 | 1 . 1 . 2 . . . 1 . . . . . . . . . . 1 1 1 . . . 1 . 1 . 2 2 2 11 5 Processor 15 | . . . . . 1 . . . . . . . 1 . . . . . 1 . 1 . . . . . . . . 1 . 6 4 Hackware 60 | . . . 2 . . 1 . 2 . . . . 1 2 . 4 . 2 1 6 5 7 4 8 2 1 1 . 3 5 2 1 . Protection 59 | . 3 2 2 4 . 6 . 6 . . . 1 3 1 . . 1 3 2 3 2 . . . . . . . 1 . 3 15 1 Artifact 19 | . . . . . . . . . . . . . . . . . . . . . . . . . . . . . . 5 3 9 2 Weapon 357 | 3 10 8 3 24 . 12 1 16 . 2 . . 6 11 . 15 3 16 16 23 12 20 1 7 9 6 13 8 13 33 13 32 21 Energy Gun 44 | 2 5 2 . 3 . 2 . 7 . 1 . . . 2 . 1 3 3 1 4 2 1 . . . . 3 . . 1 1 . . Energy Cannon 88 | . . . . 8 . 1 . 1 . 1 . . 1 1 . 2 . 1 . 2 3 3 . 1 3 1 . 5 10 15 8 16 5 Ballistic Gun 118 | 1 4 6 3 13 . 7 1 3 . . . . 3 4 . 7 . 7 13 13 4 7 . 3 3 3 6 3 . 3 . 1 . Ballistic Cannon 43 | . . . . . . . . . . . . . . . . . . . . . 1 3 . 1 1 . . . 1 4 1 15 16 Launcher 3 | . . . . . . 2 . 1 . . . . . . . . . . . . . . . . . . . . . . . . . Special Weapon 44 | . 1 . . . . . . 1 . . . . 2 4 . 5 . 5 . . . 1 1 2 1 2 4 . 2 10 3 . . Impact Weapon . | . . . . . . . . . . . . . . . . . . . . . . . . . . . . . . . . . . Slashing Weapon 3 | . . . . . . . . 3 . . . . . . . . . . . . . . . . . . . . . . . . . Piercing Weapon . | . . . . . . . . . . . . . . . . . . . . . . . . . . . . . . . . . . Special Melee Weapon 14 | . . . . . . . . . . . . . . . . . . . 2 4 2 5 . . 1 . . . . . . . . Unidentified Prototypes 36 | . . . . 3 . 3 . . . . . . . . . . . . 3 1 . . . . . 1 . . 5 4 1 10 5 Corrupted Parts 13 | . . . . . . . . . . . . . . . . . . . . 1 . 7 . . . . . . . 1 . . 4 System Corruption 76 | . . . . . . . . . . . . . . . . . . . . 2 . 50 . . . . . . . 1 . . 23 Parts Lost 73 | . . . . 6 . 3 1 5 . . . 1 1 . . 1 1 4 2 3 3 11 1 . . . . . . 4 6 1 19 Power 10 | . . . . 1 . 1 . 1 . . . . 1 . . . . . . . . . . . . . . . . 2 1 . 3 Propulsion 19 | . . . . 1 . . . . . . . . . . . . . 1 1 . . 3 . . . . . . . 1 4 . 8 Utility 24 | . . . . 1 . 1 1 2 . . . 1 . . . . 1 1 1 2 2 2 1 . . . . . . . . 1 7 Weapon 20 | . . . . 3 . 1 . 2 . . . . . . . 1 . 2 . 1 1 6 . . . . . . . 1 1 . 1 Highest Loss Streak 5 | . . . . 3 . 3 1 3 . . . 1 1 . . 1 1 3 1 2 3 4 1 . . . . . . 2 2 1 5 Average Slot Usage (%) 84 | . 99 99 99 98 100 91 88 83 84 84 84 83 85 85 86 85 85 86 96 99 99 96 95 93 85 79 79 77 77 83 83 70 67 Engine 2 | . 14 14 11 10 11 8 . . . . . . . . . . 2 2 . . . . . . . . . . . . . . . Core 1 | . . . . . . . 9 7 7 7 7 7 6 5 6 3 . 2 5 5 5 5 5 4 4 4 2 . . . . . . Reactor 4 | . . . . . . . . . . . . . . . . 2 2 . . . . . 2 4 4 4 5 8 8 7 11 8 5 Treads 9 | . 23 7 4 2 2 . . . . . . . 6 6 6 6 2 . 1 . . . 3 4 9 14 14 17 16 7 4 16 15 Leg 4 | . 4 20 10 . . . . . . . . . . . . . 5 11 25 30 31 25 . . . . . . . 1 . . . Wheel 6 | . . . 7 19 19 15 9 15 15 15 15 15 13 13 13 13 11 10 2 . . 3 19 19 9 . . . . 15 19 . . Device 12 | . 4 . 11 8 10 9 13 12 15 15 15 14 13 7 20 7 10 10 11 11 6 13 10 4 16 18 14 12 16 15 14 18 12 Storage 7 | . 1 11 11 11 11 9 9 7 7 7 7 7 6 6 6 6 5 5 8 7 5 5 4 4 4 4 7 8 6 11 9 6 7 Processor 3 | . . . . . . . . . . . . . 5 6 6 6 5 5 7 5 5 1 . . . . . . . 1 4 7 19 Hackware 5 | . . . 1 3 . 7 9 4 . . . . . 7 . 10 6 3 5 9 15 19 26 32 17 14 14 13 8 2 4 . . Protection 8 | . 22 16 10 10 11 13 12 12 15 15 15 15 12 9 6 6 9 12 6 6 6 . . . . . . . 2 . 4 8 2 Energy Gun 3 | . 3 10 10 5 . . . 17 15 14 15 15 13 6 6 4 5 6 . 8 2 4 . . . . 7 7 . 1 1 . . Energy Cannon 2 | . . . . . . . . . . . . . . . . . . 2 . . 1 1 . . 7 9 3 1 16 9 4 1 1 Ballistic Gun 8 | . 24 17 22 26 33 26 27 4 7 7 7 7 5 12 13 12 10 5 20 10 15 5 4 9 6 8 6 7 . 1 . . . Ballistic Cannon 1 | . . . . . . . . . . . . . . . . . . . . . . 6 9 3 . . . . . 2 . 2 2 Naked Turns . | . . . . . . . . . . . . . . . . . . . . . . . . . . . . . . . . . . Heaviest Build 275 | 15 15 23 38 73 68 83 77 117 109 109 109 122 125 122 122 129 130 138 148 141 134 126 141 136 275 199 198 214 233 242 239 254 250 Greatest Support 315 | 40 40 40 30 24 24 28 28 56 56 56 56 56 56 56 56 56 56 56 145 155 165 165 64 60 200 200 200 270 295 280 315 315 307 Greatest Overweight (x) 6 | 1 . . 3 3 5 3 2 2 1 1 1 2 2 5 2 6 2 4 5 . . 4 2 2 5 . . . . 6 3 1 1 Average Overweight (x) . | . . . . 1 2 2 2 1 1 1 1 1 1 1 2 2 2 2 . . . . 1 2 1 . . . . 2 2 . . Largest Inventory Capacity 32 | 8 8 8 8 20 20 20 20 25 25 25 25 25 25 25 25 25 25 25 25 25 25 25 25 25 30 30 30 30 30 32 32 32 32 Average Capacity 25 | 5 5 7 8 17 20 20 20 24 25 25 25 25 25 25 25 25 25 25 25 25 25 25 25 25 28 30 30 30 30 31 32 32 29 Most Carried 32 | 7 8 8 8 20 20 20 18 24 25 25 25 25 25 25 23 25 25 25 25 25 25 25 25 25 30 30 30 27 30 32 32 32 32 Average Carried 23 | 1 5 7 7 13 19 19 17 21 24 24 25 24 23 23 23 23 24 24 22 24 23 23 23 24 26 28 29 27 29 29 30 28 24 Final Capacity 32 | 8 5 8 8 20 20 20 20 25 25 25 25 25 25 25 25 25 25 25 25 25 25 25 25 25 30 30 30 30 30 32 32 32 7 Final Carried 32 | 7 5 8 8 20 19 16 18 24 25 25 25 24 25 23 23 25 25 25 25 25 23 24 25 25 29 29 29 27 29 31 32 32 3 Class Distribution -------------------- 27% | Generator-Mutant 16% | Tank 13% | Botlord-Tank 8% | Botlord-Mutant 7% | Mutant 6% | Botlord-Gunner 5% | Hauler-Mutant 4% | Scavenger-Mutant 3% | Scavenger-Tank Dominant Class ---------------- Mutant | -10/Materials Scavenger-Mutant | -10/Mines Tank | -9/Materials Tank | -9/Storage Tank | -9/Garrison Tank | -8/Materials Tank | -8/Garrison Tank | -7/Factory Tank | -7/Lower Caves Tank | -7/Lower Caves Tank | -7/Data Miner Tank | -6/Proximity Caves Bothacker-Tank | -6/Factory Scavenger-Tank | -6/Garrison Bothacker-Gunner | -6/Factory Bothacker-Gunner | -6/Garrison Bothacker-Tank | -5/Factory Botlord-Tank | -5/Garrison Botlord-Gunner | -4/Factory Botlord-Gunner | -4/Garrison Botlord-Tank | -4/Factory Botlord-Mutant | -4/Garrison Botlord-Mutant | -3/Research Botlord-Mutant | -3/Garrison Botlord-Mutant | -3/Research Botlord-Tank | -3/Quarantine Botlord-Tank | -3/Garrison Botlord-Tank | -2/Research Botlord-Tank | -2/Testing Botlord-Tank | -2/Section 7 Hauler-Mutant | -1/Access Generator-Mutant | -1/Command Scavenger-Mutant | -1/Access_0 Resources | -11 -10 -10 -9 -9 -9 -8 -8 -7 -7 -7 -7 -6 -6 -6 -6 -6 -5 -5 -4 -4 -4 -4 -3 -3 -3 -3 -3 -2 -2 -2 -1 -1 -1 ----------- Run | Scr Mat Min Mat Sto Gar Mat Gar Fac Low Low Dat Pro Fac Gar Fac Gar Fac Gar Fac Gar Fac Gar Res Gar Res Qua Gar Res Tes Sec Acc Com Ac0 Matter Collected 20064 | 505 404 350 130 1162 101 985 341 472 78 47 . 75 250 451 . 461 381 424 773 669 647 1167 66 1155 218 170 656 65 568 2059 807 3423 1004 Remotely 1225 | . . . . . . . 96 . . . . . . . . . . . . . . 518 . . . . . . . . 181 430 . Salvage Created 25025 | 309 611 257 103 1850 136 1466 387 1107 54 41 . 82 336 426 . 337 373 853 1205 776 892 660 . 404 263 365 994 65 1508 2939 2348 2464 1414 Parts 1086 | 24 40 15 11 97 11 106 24 59 1 2 . 2 16 19 . 12 10 34 72 22 31 24 . 14 12 12 34 5 37 102 84 90 64 Haulers Intercepted 18 | . 2 . 2 5 . 6 . . . . . . . . . . . . 1 . 1 . . . . . . . . 1 . . . Recyclers Shooed 8 | . . . . 2 . . . . . . . . 2 . . . . . . . . . . . . . . . . . 2 2 . Parts Field Recycled . | . . . . . . . . . . . . . . . . . . . . . . . . . . . . . . . . . . Retrieved Matter . | . . . . . . . . . . . . . . . . . . . . . . . . . . . . . . . . . . Parts Self-Destructed 9 | . . . . . . . . . 1 3 . 5 . . . . . . . . . . . . . . . . . . . . . Prevented 3 | . . . . . . . . . . 3 . . . . . . . . . . . . . . . . . . . . . . . Kills | -11 -10 -10 -9 -9 -9 -8 -8 -7 -7 -7 -7 -6 -6 -6 -6 -6 -5 -5 -4 -4 -4 -4 -3 -3 -3 -3 -3 -2 -2 -2 -1 -1 -1 ------- Run | Scr Mat Min Mat Sto Gar Mat Gar Fac Low Low Dat Pro Fac Gar Fac Gar Fac Gar Fac Gar Fac Gar Res Gar Res Qua Gar Res Tes Sec Acc Com Ac0 Combat Hostiles Destroyed 366 | . 9 3 . 30 5 31 8 20 1 1 . 2 9 10 . 7 8 14 19 12 9 8 . 1 3 5 15 1 15 43 27 32 18 Melee 1 | . . . . . . . . . . . . . . . . . . . . . . . . . . . . . . . . 1 . Guns 210 | . 9 3 . 30 5 25 8 20 1 1 . 2 9 9 . 7 8 10 19 12 5 5 . . . 1 14 1 1 4 1 . . Cannons 102 | . . . . . . . . . . . . . . . . . . 4 . . 3 2 . 1 3 3 . . 8 33 8 23 14 AOE 12 | . . . . . . 6 . . . . . . . . . . . . . . . . . . . . . . . . 4 1 1 Classes Destroyed 23 | 3 3 1 . 4 1 3 . 2 1 . . . . . . 1 . . . . . 1 . . . . . . 1 1 1 . . Worker 20 | 2 . . . 3 . 2 . 2 . . . . 1 . . . . . . . . . . . . . . 1 1 . 1 7 . Builder 10 | . . . . 2 . 1 . 3 . . . . . . . . . . 1 . . . . . . 1 . . . 2 . . . Tunneler 13 | 9 . 1 . . . 1 . 2 . . . . . . . . . . . . . . . . . . . . . . . . . Hauler 18 | . 2 . 2 5 . 6 . . . . . . . . . . . . 1 . 1 . . . . . . . . 1 . . . Recycler 19 | 1 1 1 . . . 1 . 2 . . . . . . . . . . . . 1 . . . . . . . . 1 4 7 . Minesweeper 1 | . . . . . . . . . 1 . . . . . . . . . . . . . . . . . . . . . . . . Mechanic 2 | . . . . 1 . . . . . . . . . . . . . . . . . . . . . . . . . . . 1 . Operator 6 | . . . . . . 2 . . . . . . . . . . . . 1 . . . . . . . . . . 2 . 1 . Watcher 16 | . 3 . 1 2 . 5 . 1 . . . . 1 . . . . . . . . . . . . . . . . . . 3 . Swarmer 68 | . . . . . 3 16 . . . . . . 3 3 . . . 6 5 2 . 3 . . . . 6 . . 5 5 11 . Grunt 145 | . 9 2 . 19 2 5 8 13 . . . 1 5 5 . 6 8 4 5 8 3 . . . 1 3 7 . 10 12 8 1 . Brawler 4 | . . . . 2 . . . 2 . . . . . . . . . . . . . . . . . . . . . . . . . Duelist 9 | . . . . . . . . 1 . . . 1 . 1 . . . . . 2 1 . . . . . . . . 2 1 . . Protector 1 | . . . . 1 . . . . . . . . . . . . . . . . . . . . . . . . . . . . . Researcher 1 | . . . . . . . . . . . . . . . . . . . . . . . . . . . . . 1 . . . . Sentry 43 | . . 1 . 8 . 8 . 3 . . . . . 2 . . . 6 1 . 3 2 . 1 . . . . . 6 . 2 . Specialist 3 | . . . . . . . . . . . . . . . . 1 . . . . . . . . . 2 . . . . . . . Hunter 35 | . . . . . . 1 . . 1 1 . . . . . . . . 2 1 . . . . . . 2 . 5 10 4 8 . Programmer 41 | . . . . . . . . 1 . . . . 1 . . . . . 6 . 2 2 . 1 3 . . 1 2 6 8 8 . Heavy 1 | . . . . . . 1 . . . . . . . . . . . . . . . . . . . . . . . . . . . Q-Series 1 | . . . . . . . . . . . . . . . . . . . . . . . . . . . . . . . 1 . . Behemoth 3 | . . . . . . . . . . . . . . . . . . . . . . 1 . . . . 1 . . . . 1 . Enhanced Grunt 8 | . . . . . . . . . . . . . . . . . . . . . . . . . . . . . . . . . 8 Enhanced Sentry 1 | . . . . . . . . . . . . . . . . . . . . . . . . . . . . . . . . . 1 Enhanced Hunter 7 | . . . . . . . . . . . . . . . . . . . . . . . . . . . . . . . . . 7 Executioner 2 | . . . . . . . . . . . . . . . . . . . . . . . . . . . . . . 2 . . . Best Kill Streak 15 | 4 2 2 1 15 3 7 3 6 1 1 . 2 4 3 . 3 7 3 4 4 4 3 . 1 2 3 5 1 4 6 7 7 3 Combat Bots Only 8 | . 2 1 . 8 3 6 3 6 1 1 . 2 3 3 . 3 7 3 3 4 4 3 . 1 2 3 5 1 4 6 7 6 3 Max Kills in Single Turn 3 | 1 1 1 1 2 2 3 1 2 1 1 . 1 2 1 . 1 1 1 2 2 1 1 . 1 1 1 1 1 2 2 2 1 2 Gunslinging 2 | . . . . . 1 2 . . . . . . . . . . . . 1 . . . . . . . . . . . . . . Exploded 2 | . . . . . . 1 . . . . . . . . . . . . . . . . . . . . . . . . 2 1 1 Melee 1 | . . . . . . . . . . . . . . . . . . . . . . . . . . . . . . . . 1 . Uniques/NPCs Destroyed 4 | . . . . . . . . . . . . . . . . . . . . . . . . . . . . . . . . 2 2 MAIN.C Shell (-1/Command) MAIN.C (-1/Command) A8 (-1/Access_0) A6 (-1/Access_0) Combat | -11 -10 -10 -9 -9 -9 -8 -8 -7 -7 -7 -7 -6 -6 -6 -6 -6 -5 -5 -4 -4 -4 -4 -3 -3 -3 -3 -3 -2 -2 -2 -1 -1 -1 -------- Run | Scr Mat Min Mat Sto Gar Mat Gar Fac Low Low Dat Pro Fac Gar Fac Gar Fac Gar Fac Gar Fac Gar Res Gar Res Qua Gar Res Tes Sec Acc Com Ac0 Damage Taken 38123 | . 320 250 18 1289 66 1527 225 1100 . . . 191 429 651 . 344 577 1056 1418 875 1564 1865 115 300 310 395 1017 151 1931 5325 3143 2481 9190 Core 2817 | . 37 39 7 163 30 156 19 186 . . . . 56 52 . 18 57 110 42 89 139 223 . 39 . 21 18 8 48 478 104 119 559 Absorbed by Shields 14851 | . . . 6 39 . . 31 . . . . . . . . 16 . 30 . . . 68 23 91 114 146 368 53 65 2416 2780 2611 5994 Reduced by Siege Mode 1594 | . . . . . . . . . . . . . . . . . . . . . . . . . 38 41 140 6 186 283 215 203 482 Core Remaining (%) 70 | 100 . 69 . . 50 . 68 . . . . 73 . . . 85 . 83 . . . 57 . . . . 94 . . 28 . . . Volleys Fired 1736 | 65 50 19 3 108 7 90 20 59 3 2 . 10 26 34 . 22 22 55 39 30 28 40 7 181 33 14 44 8 63 155 127 193 179 Largest 4 | 1 2 2 3 3 3 3 3 3 3 3 . 3 3 3 . 3 3 3 4 4 4 4 1 3 4 4 4 4 4 4 2 1 1 Hottest 389 | 20 100 40 121 135 69 88 71 230 183 183 . 183 183 183 . 131 81 179 132 267 233 248 40 153 259 259 260 374 389 389 214 200 200 Shots Fired 3502 | 65 95 38 9 313 21 264 56 165 9 4 . 26 64 80 . 46 66 134 156 117 107 109 7 193 76 40 154 20 198 373 129 193 175 Gun 2216 | 65 90 38 9 307 21 250 56 162 9 3 . 26 57 72 . 34 66 106 156 116 91 65 . 165 17 16 115 13 5 43 43 . . Cannon 1153 | . . . . 6 . 3 . 1 . 1 . . 2 1 . 2 . 14 . 1 16 40 . 11 54 22 33 7 189 305 77 193 175 Launcher 12 | . . . . . . 11 . 1 . . . . . . . . . . . . . . . . . . . . . . . . . Special 121 | . 5 . . . . . . 1 . . . . 5 7 . 10 . 14 . . . 4 7 17 5 2 6 . 4 25 9 . . Kinetic 1962 | 65 57 38 6 255 21 250 56 43 3 1 . 10 19 52 . 24 66 35 156 52 84 58 . 176 20 16 65 7 5 112 3 94 113 Thermal 1196 | . 27 . 3 58 . 3 . 120 6 3 . 16 40 21 . 12 . 85 . 65 19 32 . . 48 22 83 13 189 225 44 16 46 Explosive 12 | . . . . . . 11 . 1 . . . . . . . . . . . . . . . . . . . . . . . . . Electromagnetic 216 | . 11 . . . . . . . . . . . . . . . . . . . 4 15 . . 3 . . . . 11 73 83 16 Robot Hit Streak 65 | 7 13 12 6 21 6 16 9 13 6 1 . 6 24 65 . 9 12 19 13 15 21 19 7 29 15 22 44 9 12 31 19 35 50 Robot Miss Streak 8 | 3 2 1 . 3 3 3 4 8 2 5 . 6 6 8 . 5 4 3 4 2 2 3 1 4 3 1 3 1 4 2 3 2 3 Penetration Max 2 | . . . . . . . . . . . . . . . . . . . 1 1 1 . . . . . 1 . 1 2 . . . Secondary Targets 26 | . . . . 5 3 4 1 2 . . . . 1 . . . 2 1 5 . . . . . . . . . . 2 . . . Max Gunslinging Chain 2 | . . . . 1 1 2 1 1 . . . . 1 . . . 1 1 2 . . . . . . . . . . 1 . . . Shots Hit Robots 2368 | 44 60 30 3 193 12 170 33 133 9 3 . 24 55 66 . 36 60 93 103 79 78 81 6 126 27 30 103 8 90 226 86 138 163 Core Hits 1447 | 13 29 8 3 69 5 85 21 135 10 1 . 23 60 89 . 33 70 34 43 30 22 20 . 39 6 10 39 3 34 80 38 62 333 Critical Kills 36 | . . . . . . 1 . . . . . . . . . . . . 6 1 2 2 . . 1 1 2 . 4 4 2 . 10 Critical Parts Destroyed 97 | . . . . 2 . 2 . . . . . . . . . . . . 3 2 3 1 . 1 . . . . . . . . 83 Critical Strikes 232 | . 1 . . 5 . 3 . . . . . . . . . . . 1 9 6 6 7 . 1 1 1 4 . 4 13 5 13 152 Burn 11 | . 1 . . 3 . . . . . . . . . . . . . 1 . 3 . 2 . . . . 1 . . . . . . Meltdown 13 | . . . . . . . . . . . . . . . . . . . . . . . . . 1 1 1 . 4 4 2 . . Destroy 179 | . . . . 2 . 3 . . . . . . . . . . . . 9 3 6 4 . 1 . . 2 . . . . . 149 Blast 22 | . . . . . . . . . . . . . . . . . . . . . . . . . . . . . . 9 . 12 1 Corrupt 7 | . . . . . . . . . . . . . . . . . . . . . . 1 . . . . . . . . 3 1 2 Melee Attacks 46 | . . . . . . . . 7 . . . . . . . . . . 2 10 8 19 . . . . . . . . . . . Impact . | . . . . . . . . . . . . . . . . . . . . . . . . . . . . . . . . . . Slashing 7 | . . . . . . . . 7 . . . . . . . . . . . . . . . . . . . . . . . . . Piercing . | . . . . . . . . . . . . . . . . . . . . . . . . . . . . . . . . . . Sneak Attacks 4 | . . . . . . . . 1 . . . . . . . . . . 1 . 2 . . . . . . . . . . . . Combat Hostiles 1 | . . . . . . . . . . . . . . . . . . . . . 1 . . . . . . . . . . . . Follow-up Attacks . | . . . . . . . . . . . . . . . . . . . . . . . . . . . . . . . . . . Damage Inflicted 77916 | 544 810 424 62 3186 190 3230 548 2526 187 25 . 502 1183 1169 . 535 1121 1732 2600 1743 2006 1920 . 1354 887 829 2352 327 4250 9407 5376 13915 12976 Guns 29638 | 544 773 388 62 3185 190 2508 548 2349 187 25 . 502 1183 1169 . 535 1121 1442 2559 1743 1615 952 . 1199 262 294 1728 173 156 1141 1105 . . Cannons 39722 | . . . . . . 30 . . . . . . . . . . . 290 . . 383 968 . 155 625 488 624 120 3871 8266 3262 11554 9086 Explosions 6964 | . . . . . . 692 . . . . . . . . . . . . . . . . . . . . . . . . 1009 1373 3890 Melee 177 | . . . . . . . . 177 . . . . . . . . . . . . . . . . . . . . . . . . . Ramming 1415 | . 37 36 . 1 . . . . . . . . . . . . . . 41 . 8 . . . . 47 . 34 223 . . 988 . Kinetic 35561 | 544 509 388 . 2744 190 2508 548 536 42 3 . 191 425 779 . 315 1121 353 2559 824 1585 1060 . 1354 342 294 963 118 156 3526 298 7783 3503 Thermal 34817 | . 168 . 62 441 . 30 . 1813 145 22 . 311 758 390 . 220 . 1379 . 919 336 454 . . 537 488 1389 175 3871 5627 2877 3245 9160 Explosive 692 | . . . . . . 692 . . . . . . . . . . . . . . . . . . . . . . . . . . . Electromagnetic 5254 | . 96 . . . . . . . . . . . . . . . . . . . 77 406 . . 8 . . . . 254 2201 1899 313 Impact . | . . . . . . . . . . . . . . . . . . . . . . . . . . . . . . . . . . Slashing 177 | . . . . . . . . 177 . . . . . . . . . . . . . . . . . . . . . . . . . Piercing . | . . . . . . . . . . . . . . . . . . . . . . . . . . . . . . . . . . Highest Corruption 57 | . . . . 1 1 2 2 1 . . . . . . . . . 1 1 3 5 57 . 1 4 4 4 1 11 16 8 6 30 Average Corruption 5 | . . . . 1 1 2 2 1 . . . . . . . . . 1 1 2 3 13 . 1 2 4 4 1 5 8 4 2 15 Corruption Purged 32 | . . . . . . . . 1 . . . . . . . . . 1 . . . . . . . . . . . 6 8 16 . Effects 317 | . . . . . 3 . 1 2 . . . . . . . . . . 1 9 19 46 . 2 8 11 13 . 32 77 23 23 47 Message Errors 79 | . . . . . 1 . . 1 . . . . . . . . . . 1 2 5 10 . 1 3 5 3 . 12 18 3 6 8 Matter Fused 68 | . . . . . . . . . . . . . . . . . . . . 1 7 7 . . 2 2 1 . 6 20 3 5 14 Heat Flow Errors 27 | . . . . . . . . . . . . . . . . . . . . . 1 6 . . . 2 2 . 1 5 3 3 4 Energy Discharges 42 | . . . . . 2 . . . . . . . . . . . . . . 3 2 8 . . 1 1 2 . 5 6 3 3 6 Parts Rejected 7 | . . . . . . . . . . . . . . . . . . . . . . 3 . . . . . . 1 1 . . 2 Data Loss (minor) 47 | . . . . . . . 1 1 . . . . . . . . . . . 3 1 5 . 1 2 1 5 . 4 11 5 4 3 Data Loss (major) 16 | . . . . . . . . . . . . . . . . . . . . . 1 2 . . . . . . 3 7 2 . 1 Misfires 12 | . . . . . . . . . . . . . . . . . . . . . 1 3 . . . . . . . 3 2 1 2 Alerts 1 | . . . . . . . . . . . . . . . . . . . . . . . . . . . . . . . . . 1 Weapon Failures 18 | . . . . . . . . . . . . . . . . . . . . . 1 2 . . . . . . . 6 2 1 6 Overload Shots 1 | . . . . . . . . . . . . . . . . . . . . . . . . . . . . . . 1 . . . Effects 1 | . . . . . . . . . . . . . . . . . . . . . . . . . . . . . . 1 . . . Energy Bleed 1 | . . . . . . . . . . . . . . . . . . . . . . . . . . . . . . 1 . . . Overflow Damage 3774 | . . . . . . . . . . . . . . . . . . . . . 13 32 . . 31 3 . . 312 339 470 1805 769 Projectiles 3262 | . . . . . . . . . . . . . . . . . . . . . 13 32 . . 31 . . . 242 339 323 1601 681 Explosions 253 | . . . . . . . . . . . . . . . . . . . . . . . . . . . . . . . 147 18 88 Melee 259 | . . . . . . . . . . . . . . . . . . . . . . . . . . 3 . . 70 . . 186 . Knockbacks 91 | . . 1 . . . . . . . . . . . . . . . . . . . 1 . 1 . 1 . . 2 21 2 31 31 Impact 12 | . . 1 . . . . . . . . . . . . . . . . . . . . . . . 1 . . 2 . . 8 . Kinetic 75 | . . . . . . . . . . . . . . . . . . . . . . 1 . 1 . . . . . 17 2 23 31 Secondary 4 | . . . . . . . . . . . . . . . . . . . . . . . . . . . . . . 4 . . . Self-Inflicted Damage 277 | . . . . . . 55 . . . . . . . . . . . . . . . . . . . . . . . . 14 . 208 Shots 8 | . . . . . . 3 . . . . . . . . . . . . . . . . . . . . . . . . 1 . 4 Rammed 50 | . 9 1 . 1 . 1 . . . . . . . . . . . . . . . . . . . 1 . 2 10 . 1 24 . Targets Rammed 68 | . 10 7 . 1 . 1 . . . . . . . . . . . . 3 . 1 . . . . 2 . 3 10 . 1 29 . Kicked 10 | . . 6 . . . . . . . . . . . . . . . . 3 . 1 . . . . . . . . . . . . Crushed 8 | . 1 . . . . . . . . . . . . . . . . . . . . . . . . 1 . 1 . . . 5 . Highest Temperature 508 | . 102 27 60 332 73 198 197 508 180 108 . 198 198 191 . 137 34 108 8 68 256 374 4 241 218 187 342 186 199 268 266 196 223 Average Temperature 79 | . 34 11 32 70 26 56 69 109 77 56 . 118 107 75 . 42 9 44 4 21 63 112 2 59 94 76 114 86 106 94 95 46 77 Received Heat Transfer 4326 | . 177 129 4 480 6 351 159 429 . . . 63 192 195 . 135 214 234 159 69 199 150 9 27 8 44 78 18 184 286 108 145 74 Effects 12 | . . . . 1 . . . 3 . . . . . . . . . . . . 3 1 . . . . 1 . . 3 . . . Shutdowns 1 | . . . . . . . . 1 . . . . . . . . . . . . . . . . . . . . . . . . . Energy Bleed 4 | . . . . 1 . . . . . . . . . . . . . . . . . 1 . . . . 1 . . 1 . . . Interference 7 | . . . . . . . . 2 . . . . . . . . . . . . 3 . . . . . . . . 2 . . . Siege Activations 51 | . . . . . . . . . . . . . . . . . . . . . . . . . 1 2 5 1 6 14 6 10 6 Total Turns 1135 | . . . . . . . . . . . . . . . . . . . . . . . . . 16 29 98 9 76 291 306 182 128 Longest Duration 165 | . . . . . . . . . . . . . . . . . . . . . . . . . 16 25 32 9 22 55 165 73 36 Robots Corrupted 28 | . . . . . . . . . . . . . . . . . . . . . . 2 . . . . . . . 1 12 10 3 Combat Hostiles 23 | . . . . . . . . . . . . . . . . . . . . . . . . . . . . . . 1 12 7 3 Parts Fried 56 | . . . . . . . . . . . . . . 1 . . . . . . . . . . . . . . . 2 20 22 11 Impact Corruptions 18 | . . . . . . . . . . . . . . . . . . . . . . . . . . 1 . . 5 1 . 11 . Robots Melted 17 | . . . . . . . . . . . . . . . . . . . . . 1 1 . . 1 1 1 . 6 4 2 . . Combat Hostiles 16 | . . . . . . . . . . . . . . . . . . . . . 1 1 . . . 1 1 . 6 4 2 . . Parts Melted 81 | . . . . . . . . 2 1 . . 1 . . . 1 . 15 . 3 5 2 . . 2 5 13 . 11 14 6 . . Heat Transferred 31449 | . 520 . 111 1332 . 50 . 2066 215 35 . 515 1080 330 . 180 . 2849 . 1698 487 991 . . 700 750 2800 211 3404 5032 2484 754 2855 Parts Sabotaged 2 | . . . . . . . . . . . . . . . . . . . . . 2 . . . . . . . . . . . . Parts Stolen . | . . . . . . . . . . . . . . . . . . . . . . . . . . . . . . . . . . Parts Stripped . | . . . . . . . . . . . . . . . . . . . . . . . . . . . . . . . . . . Power Chain Reactions 1 | . . . . . . . . . . . . . . . . . . . . . . . . . . . . . . . . 1 . Missiles Intercepted . | . . . . . . . . . . . . . . . . . . . . . . . . . . . . . . . . . . Alert | -11 -10 -10 -9 -9 -9 -8 -8 -7 -7 -7 -7 -6 -6 -6 -6 -6 -5 -5 -4 -4 -4 -4 -3 -3 -3 -3 -3 -2 -2 -2 -1 -1 -1 ------- Run | Scr Mat Min Mat Sto Gar Mat Gar Fac Low Low Dat Pro Fac Gar Fac Gar Fac Gar Fac Gar Fac Gar Res Gar Res Qua Gar Res Tes Sec Acc Com Ac0 Peak Influence 847 | 60 189 90 163 552 532 569 663 638 . . . . 305 626 328 404 423 485 621 847 655 715 446 185 118 164 398 340 424 442 320 438 . Initial 444 | . 39 17 . 3 322 259 363 347 . . . . 63 106 328 229 212 156 254 336 444 266 402 22 103 . 3 223 191 183 86 102 . Average 280 | 38 67 30 68 335 374 310 547 492 . . . . 180 345 328 300 322 360 404 624 510 528 327 116 42 63 202 263 309 177 93 337 . Maximum Alert Level 3 | . . . . 2 2 2 2 2 . . . . 1 2 1 2 2 2 2 3 2 3 2 . . . 1 1 2 2 1 2 . Low Security (%) 29 | 100 100 100 100 13 . 7 . . . . . . 56 28 . . 1 9 . . . . 13 100 100 100 53 . 8 61 84 1 . Level 1 33 | . . . . 49 83 77 9 21 . . . . 43 28 100 87 52 35 41 11 4 6 43 . . . 46 100 88 36 15 38 . Level 2 34 | . . . . 37 16 15 90 78 . . . . . 42 . 12 45 55 58 37 95 78 43 . . . . . 3 1 . 60 . Level 3 2 | . . . . . . . . . . . . . . . . . . . . 51 . 14 . . . . . . . . . . . Level 4 . | . . . . . . . . . . . . . . . . . . . . . . . . . . . . . . . . . . Level 5 . | . . . . . . . . . . . . . . . . . . . . . . . . . . . . . . . . . . High Security . | . . . . . . . . . . . . . . . . . . . . . . . . . . . . . . . . . . Max Security . | . . . . . . . . . . . . . . . . . . . . . . . . . . . . . . . . . . Squads Dispatched 82 | . 4 1 1 7 . 6 . 8 . . . . 5 . . . . . 8 . 9 . 2 . 3 . . . 5 12 6 5 . Investigation 12 | . 3 1 . 1 . . . . . . . . 1 . . . . . 1 . . . 1 . 2 . . . . 1 1 . . Extermination 13 | . . . . . . . . 1 . . . . . . . . . . 2 . 2 . . . 1 . . . 2 2 1 2 . Reinforcement 33 | . 1 . 1 1 . 4 . . . . . . 4 . . . . . 2 . 3 . 1 . . . . . 3 9 1 3 . Assault 5 | . . . . 2 . . . 1 . . . . . . . . . . . . 2 . . . . . . . . . . . . Garrison 19 | . . . . 3 . 2 . 6 . . . . . . . . . . 3 . 2 . . . . . . . . . 3 . . Intercept . | . . . . . . . . . . . . . . . . . . . . . . . . . . . . . . . . . . Construction Impeded 2 | . . . . . . . . . . . . . 1 . . . . . . . . . . . . . . . . 1 . . . Haulers Reinforced 4 | . . . . . . 1 . . . . . . 1 . . . . . 1 . 1 . . . . . . . . . . . . Active Scanning Responses . | . . . . . . . . . . . . . . . . . . . . . . . . . . . . . . . . . . Cargo Convoy Interrupts . | . . . . . . . . . . . . . . . . . . . . . . . . . . . . . . . . . . Alert ID Control Effect 37 | . . . . . . . . . . . . . . . . . 2 3 . 5 3 4 2 9 5 . 3 . 1 . . . . Stealth | -11 -10 -10 -9 -9 -9 -8 -8 -7 -7 -7 -7 -6 -6 -6 -6 -6 -5 -5 -4 -4 -4 -4 -3 -3 -3 -3 -3 -2 -2 -2 -1 -1 -1 --------- Run | Scr Mat Min Mat Sto Gar Mat Gar Fac Low Low Dat Pro Fac Gar Fac Gar Fac Gar Fac Gar Fac Gar Res Gar Res Qua Gar Res Tes Sec Acc Com Ac0 Distress Signals 32 | . . . . 5 . 1 . . . . . . 2 . . . . . 4 . 1 . . . 1 . . 1 1 . 1 15 . Communications Jammed 117 | . . . . . . . . . . . . . . . . . . . . . . . . . . 2 . . 77 9 6 23 . Distress Signals 117 | . . . . . . . . . . . . . . . . . . . . . . . . . . 2 . . 77 9 6 23 . Times Spotted 745 | . 21 7 10 45 5 48 8 28 1 . . 6 20 27 . 16 13 29 24 30 25 34 7 21 12 10 25 5 33 74 43 62 56 Peak Tracking Total 9 | . 3 3 2 7 3 5 7 6 1 2 . 4 6 5 . 8 9 8 6 4 6 8 4 4 4 4 4 3 4 6 8 6 4 Tactical Retreats 55 | . . 1 . 4 . 1 2 1 . . . . 1 4 . 2 2 2 2 1 1 4 . . . 1 . 2 2 6 5 11 . Traps | -11 -10 -10 -9 -9 -9 -8 -8 -7 -7 -7 -7 -6 -6 -6 -6 -6 -5 -5 -4 -4 -4 -4 -3 -3 -3 -3 -3 -2 -2 -2 -1 -1 -1 ------- Run | Scr Mat Min Mat Sto Gar Mat Gar Fac Low Low Dat Pro Fac Gar Fac Gar Fac Gar Fac Gar Fac Gar Res Gar Res Qua Gar Res Tes Sec Acc Com Ac0 Traps Triggered 45 | . 1 . . 3 5 . 6 . . . . . . 3 . 6 . 8 . 1 . 4 . 2 1 . . 1 . 2 1 1 . Indirectly . | . . . . . . . . . . . . . . . . . . . . . . . . . . . . . . . . . . Trap Hack Attempts . | . . . . . . . . . . . . . . . . . . . . . . . . . . . . . . . . . . Triggered . | . . . . . . . . . . . . . . . . . . . . . . . . . . . . . . . . . . Disarmed . | . . . . . . . . . . . . . . . . . . . . . . . . . . . . . . . . . . Reprogrammed . | . . . . . . . . . . . . . . . . . . . . . . . . . . . . . . . . . . Reused 3 | . . . . . . . . . . . . . . 2 . . . 1 . . . . . . . . . . . . . . . Traps Extracted . | . . . . . . . . . . . . . . . . . . . . . . . . . . . . . . . . . . Installed 3 | . . . . . . . . . . . . . . 2 . . . 1 . . . . . . . . . . . . . . . Triggered 5 | . . . . . . . . . 1 1 . . . 2 . . . 1 . . . . . . . . . . . . . . . Machines | -11 -10 -10 -9 -9 -9 -8 -8 -7 -7 -7 -7 -6 -6 -6 -6 -6 -5 -5 -4 -4 -4 -4 -3 -3 -3 -3 -3 -2 -2 -2 -1 -1 -1 ---------- Run | Scr Mat Min Mat Sto Gar Mat Gar Fac Low Low Dat Pro Fac Gar Fac Gar Fac Gar Fac Gar Fac Gar Res Gar Res Qua Gar Res Tes Sec Acc Com Ac0 Machines Disabled 73 | . . . . 4 . 1 1 . . . . . 1 1 . 2 . 2 6 4 1 4 . 3 1 2 2 . 11 19 3 4 1 Max in Single Turn 2 | . . . . 1 . 1 1 . . . . . . 1 . 1 . 1 1 1 1 1 . 1 1 1 1 . 2 1 1 2 1 Garrison Access 1 | . . . . . . . . . . . . . . . . . . . . . . . . . . . . . . . 1 . . Garrison Relay 17 | . . . . . . . 1 . . . . . . 1 . 2 . 2 . 4 . 4 . 2 . . 1 . . . . . . Machines Sabotaged . | . . . . . . . . . . . . . . . . . . . . . . . . . . . . . . . . . . Garrisons Compromised . | . . . . . . . . . . . . . . . . . . . . . . . . . . . . . . . . . . Overloaded Fab Kills . | . . . . . . . . . . . . . . . . . . . . . . . . . . . . . . . . . . Fab Network Shutdowns . | . . . . . . . . . . . . . . . . . . . . . . . . . . . . . . . . . . Hacking | -11 -10 -10 -9 -9 -9 -8 -8 -7 -7 -7 -7 -6 -6 -6 -6 -6 -5 -5 -4 -4 -4 -4 -3 -3 -3 -3 -3 -2 -2 -2 -1 -1 -1 --------- Run | Scr Mat Min Mat Sto Gar Mat Gar Fac Low Low Dat Pro Fac Gar Fac Gar Fac Gar Fac Gar Fac Gar Res Gar Res Qua Gar Res Tes Sec Acc Com Ac0 Machines Accessed 98 | . 9 2 5 8 . 9 . 8 . 1 3 . 2 . 1 . 4 . 4 . 5 . 4 . 4 3 . 4 5 7 3 7 . Terminals 66 | . 6 1 4 7 . 5 . 5 . . . . . . . . 1 . 1 . 3 . 3 . 3 2 . 4 5 7 2 7 . Fabricators 4 | . . . . . . . . . . . . . . . . . 1 . 1 . 1 . . . 1 . . . . . . . . Repair Stations 7 | . 1 . . . . 2 . 2 . . . . . . . . 1 . 1 . . . . . . . . . . . . . . Recycling Units 2 | . 2 . . . . . . . . . . . . . . . . . . . . . . . . . . . . . . . . Scanalyzers 2 | . . . 1 . . 1 . . . . . . . . . . . . . . . . . . . . . . . . . . . Garrison Access 12 | . . . . 1 . 1 . 1 . . . . 2 . 1 . 1 . 1 . 1 . 1 . . 1 . . . . 1 . . Total Hacks 261 | . 24 4 18 20 . 30 . 20 . 1 23 . 5 . 2 . 7 . 13 . 11 . 11 . 11 7 . 12 11 16 5 10 . Successful 159 | . 14 3 10 13 . 20 . 13 . 1 23 . 5 . 2 . 3 . 9 . 5 . 7 . 6 6 . 6 3 7 1 2 . Failed 101 | . 9 1 8 7 . 10 . 7 . . . . . . . . 4 . 4 . 6 . 4 . 5 1 . 6 8 9 4 8 . Catastrophic 20 | . . . 2 1 . 1 . 2 . . . . . . . . 1 . . . 2 . 2 . 2 . . 1 1 3 2 . . Database Lockouts 1 | . 1 . . . . . . . . . . . . . . . . . . . . . . . . . . . . . . . . Manual 99 | . 14 3 1 12 . 10 . 6 . . . . 1 . . . 1 . 7 . 5 . 4 . 7 4 . 6 7 3 . 8 . Terminals 169 | . 17 3 16 18 . 15 . 14 . . . . . . . . 2 . 3 . 7 . 8 . 8 5 . 12 11 16 4 10 . Fabricators 11 | . . . . . . . . . . . . . . . . . 1 . 5 . 2 . . . 3 . . . . . . . . Repair Stations 17 | . 4 . . . . 4 . 4 . . . . . . . . 2 . 3 . . . . . . . . . . . . . . Recycling Units 3 | . 3 . . . . . . . . . . . . . . . . . . . . . . . . . . . . . . . . Scanalyzers 11 | . . . 2 . . 9 . . . . . . . . . . . . . . . . . . . . . . . . . . . Garrison Access 25 | . . . . 2 . 2 . 2 . . . . 5 . 2 . 2 . 2 . 2 . 3 . . 2 . . . . 1 . . Terminal Hacks 79 | . 5 3 8 7 . 4 . 8 . 1 23 . . . . . 1 . 1 . 2 . 1 . 2 1 . 5 1 6 . . . Record 6 | . . . . . . . . . . . 6 . . . . . . . . . . . . . . . . . . . . . . Part Schematic 7 | . . . . . . . . . . . 6 . . . . . . . . . . . . . 1 . . . . . . . . Robot Schematic 10 | . . 2 . . . . . . . . 8 . . . . . . . . . . . . . . . . . . . . . . Robot Analysis 1 | . 1 . . . . . . . . . . . . . . . . . . . . . . . . . . . . . . . . Prototype ID Bank 10 | . 2 . 1 1 . . . 2 . . 3 . . . . . . . . . . . . . . . . . . 1 . . . Open Door 7 | . . 1 . 2 . . . . . 1 . . . . . . . . . . . . . . . . . . . 3 . . . Branch Access Points 6 | . . . 1 . . . . 1 . . . . . . . . 1 . . . 1 . . . 1 . . 1 . . . . . Terminal Index 1 | . . . . . . . . 1 . . . . . . . . . . . . . . . . . . . . . . . . . Alert Level 4 | . . . 1 3 . . . . . . . . . . . . . . . . . . . . . . . . . . . . . Unreport Threat 7 | . . . 1 1 . 1 . . . . . . . . . . . . 1 . 1 . . . . . . . 1 1 . . . Locate Traps 5 | . 1 . . . . 1 . 1 . . . . . . . . . . . . . . . . . 1 . 1 . . . . . Maintenance Status 1 | . . . . . . . . . . . . . . . . . . . . . . . . . . . . 1 . . . . . Patrol Status 2 | . . . 1 . . . . . . . . . . . . . . . . . . . . . . . . 1 . . . . . Transport Status 1 | . . . . . . . . 1 . . . . . . . . . . . . . . . . . . . . . . . . . Hauler Manifests 2 | . . . 1 . . . . 1 . . . . . . . . . . . . . . . . . . . . . . . . . Registered Components 3 | . . . 1 . . . . 1 . . . . . . . . . . . . . . 1 . . . . . . . . . . Zone Layout 6 | . 1 . 1 . . 2 . . . . . . . . . . . . . . . . . . . . . 1 . 1 . . . Fabricator Hacks 4 | . . . . . . . . . . . . . . . . . . . 2 . . . . . 2 . . . . . . . . Load Schematic 2 | . . . . . . . . . . . . . . . . . . . 1 . . . . . 1 . . . . . . . . Build 2 | . . . . . . . . . . . . . . . . . . . 1 . . . . . 1 . . . . . . . . Repair Station Hacks 11 | . 2 . . . . 4 . 3 . . . . . . . . . . 2 . . . . . . . . . . . . . . Scan Component 6 | . 1 . . . . 2 . 2 . . . . . . . . . . 1 . . . . . . . . . . . . . . Repair 5 | . 1 . . . . 2 . 1 . . . . . . . . . . 1 . . . . . . . . . . . . . . Recycling Unit Hacks 1 | . 1 . . . . . . . . . . . . . . . . . . . . . . . . . . . . . . . . Report Inventory 1 | . 1 . . . . . . . . . . . . . . . . . . . . . . . . . . . . . . . . Scanalyzer 11 | . . . 2 . . 9 . . . . . . . . . . . . . . . . . . . . . . . . . . . Insert Component 5 | . . . 1 . . 4 . . . . . . . . . . . . . . . . . . . . . . . . . . . Analyze 6 | . . . 1 . . 5 . . . . . . . . . . . . . . . . . . . . . . . . . . . Garrison Access Hacks 19 | . . . . 1 . 2 . . . . . . 4 . 2 . 2 . 1 . 2 . 2 . . 2 . . . . 1 . . Unlock Access 10 | . . . . 1 . 1 . . . . . . 2 . 1 . 1 . 1 . 1 . 1 . . 1 . . . . . . . Seal Access 1 | . . . . . . . . . . . . . . . . . . . . . . . . . . . . . . . 1 . . Coupler Status 8 | . . . . . . 1 . . . . . . 2 . 1 . 1 . . . 1 . 1 . . 1 . . . . . . . Unauthorized Hacks 34 | . 6 . . 5 . 1 . 2 . . . . 1 . . . . . 3 . 1 . 4 . 2 3 . 1 2 1 . 2 . Terminals 24 | . 4 . . 5 . 1 . . . . . . . . . . . . . . . . 3 . 2 3 . 1 2 1 . 2 . Track 7 | . 2 . . . . 1 . . . . . . . . . . . . . . . . . . . 2 . . . 1 . 1 . Botnet 9 | . . . . 3 . . . . . . . . . . . . . . . . . . 2 . . 1 . 1 1 . . 1 . Disrupt 4 | . 2 . . 1 . . . . . . . . . . . . . . . . . . . . 1 . . . . . . . . Operators 4 | . . . . 1 . . . . . . . . . . . . . . . . . . 1 . 1 . . . 1 . . . . Fabricators 3 | . . . . . . . . . . . . . . . . . . . 2 . 1 . . . . . . . . . . . . Prioritize 1 | . . . . . . . . . . . . . . . . . . . 1 . . . . . . . . . . . . . . Haulers 2 | . . . . . . . . . . . . . . . . . . . 1 . 1 . . . . . . . . . . . . Repair Stations . | . . . . . . . . . . . . . . . . . . . . . . . . . . . . . . . . . . Recycling Units 2 | . 2 . . . . . . . . . . . . . . . . . . . . . . . . . . . . . . . . Tunnel 2 | . 2 . . . . . . . . . . . . . . . . . . . . . . . . . . . . . . . . Scanalyzers . | . . . . . . . . . . . . . . . . . . . . . . . . . . . . . . . . . . Garrison Access 5 | . . . . . . . . 2 . . . . 1 . . . . . 1 . . . 1 . . . . . . . . . . Broadcast 1 | . . . . . . . . 1 . . . . . . . . . . . . . . . . . . . . . . . . . Watchers 1 | . . . . . . . . 1 . . . . . . . . . . . . . . . . . . . . . . . . . Eject 3 | . . . . . . . . . . . . . 1 . . . . . 1 . . . 1 . . . . . . . . . . Data Cores Recovered . | . . . . . . . . . . . . . . . . . . . . . . . . . . . . . . . . . . Used . | . . . . . . . . . . . . . . . . . . . . . . . . . . . . . . . . . . Hacking Detections 78 | . 5 . 4 6 . 8 . 7 . . . . 1 . 1 . 3 . 4 . 4 . 4 . 4 3 . 4 5 6 2 7 . Full Trace Events 6 | . 1 . 1 . . . . . . . . . . . . . . . . . . . . . 2 . . . . 1 1 . . Feedback Events . | . . . . . . . . . . . . . . . . . . . . . . . . . . . . . . . . . . Feedback Blocked . | . . . . . . . . . . . . . . . . . . . . . . . . . . . . . . . . . . Robot Schematics Acquired 10 | . . 2 . . . . . . . . 8 . . . . . . . . . . . . . . . . . . . . . . Robots Built 1 | . . . . . . . . . . . . . . . . . . . 1 . . . . . . . . . . . . . . Matter 153 | . . . . . . . . . . . . . . . . . . . 153 . . . . . . . . . . . . . . Time 81 | . . . . . . . . . . . . . . . . . . . 81 . . . . . . . . . . . . . . Total Robot Build Rating 1 | . . . . . . . . . . . . . . . . . . . 1 . . . . . . . . . . . . . . Part Schematics Acquired 12 | . . . 1 . . 4 . . . . 6 . . . . . . . . . . . . . 1 . . . . . . . . Parts Built 1 | . . . . . . . . . . . . . . . . . . . . . . . . . 1 . . . . . . . . Matter 102 | . . . . . . . . . . . . . . . . . . . . . . . . . 102 . . . . . . . . Time 25 | . . . . . . . . . . . . . . . . . . . . . . . . . 25 . . . . . . . . Total Part Build Rating 1 | . . . . . . . . . . . . . . . . . . . . . . . . . 1 . . . . . . . . Parts Repaired 5 | . 1 . . . . 2 . 1 . . . . . . . . . . 1 . . . . . . . . . . . . . . Time 173 | . 26 . . . . 64 . 61 . . . . . . . . . . 22 . . . . . . . . . . . . . . Parts Recycled . | . . . . . . . . . . . . . . . . . . . . . . . . . . . . . . . . . . Recycled Matter . | . . . . . . . . . . . . . . . . . . . . . . . . . . . . . . . . . . Retrieved Matter . | . . . . . . . . . . . . . . . . . . . . . . . . . . . . . . . . . . Retrieved Components . | . . . . . . . . . . . . . . . . . . . . . . . . . . . . . . . . . . Parts Scanalyzed 5 | . . . 1 . . 4 . . . . . . . . . . . . . . . . . . . . . . . . . . . Part Schematics Acquired 5 | . . . 1 . . 4 . . . . . . . . . . . . . . . . . . . . . . . . . . . Parts Damaged . | . . . . . . . . . . . . . . . . . . . . . . . . . . . . . . . . . . Bothacking | -11 -10 -10 -9 -9 -9 -8 -8 -7 -7 -7 -7 -6 -6 -6 -6 -6 -5 -5 -4 -4 -4 -4 -3 -3 -3 -3 -3 -2 -2 -2 -1 -1 -1 ------------ Run | Scr Mat Min Mat Sto Gar Mat Gar Fac Low Low Dat Pro Fac Gar Fac Gar Fac Gar Fac Gar Fac Gar Res Gar Res Qua Gar Res Tes Sec Acc Com Ac0 Used RIF Installer 9 | . . . . . 1 . 1 . . . . . . 1 . 1 . 1 . 1 . 1 . 1 . . 1 . . . . . . Command Fork 1 | . . . . . . . . . . . . . . . . . . . . . . 1 . . . . . . . . . . . Threat Obfuscator 1 | . . . . . . . . . . . . . . . . . . . . . . . . . . . 1 . . . . . . Zone Cloak 2 | . . . . . . . . . . . . . . 1 . . . . . . . . . 1 . . . . . . . . . Watcher Feeds 1 | . . . . . . . 1 . . . . . . . . . . . . . . . . . . . . . . . . . . Alert ID Control 1 | . . . . . . . . . . . . . . . . 1 . . . . . . . . . . . . . . . . . Program Shield 1 | . . . . . . . . . . . . . . . . . . . . 1 . . . . . . . . . . . . . Autooverride 1 | . . . . . . . . . . . . . . . . . . 1 . . . . . . . . . . . . . . . Robots Hacked 107 | . . . . . . . . 1 . . . . 2 5 . 8 . 11 1 9 6 17 5 10 4 2 6 . 6 10 4 . . Non-combat 12 | . . . . . . . . 1 . . . . . . . . . . 1 . 1 . 1 . . 1 . . . 3 4 . . Combat 95 | . . . . . . . . . . . . . 2 5 . 8 . 11 . 9 5 17 4 10 4 1 6 . 6 7 . . . Autooverrided 9 | . . . . . . . . . . . . . . . . . . . . . 1 1 . 3 . . 1 . 3 . . . . Robot Hacks Applied 118 | . . . . . . . . 1 . . . . 3 5 . 8 . 12 1 9 6 17 6 14 4 2 6 . 3 15 6 . . parse_system 1 | . . . . . . . . . . . . . . . . . . 1 . . . . . . . . . . . . . . . drop_inventory 5 | . . . . . . . . 1 . . . . . . . . . . . . 1 . . . . . . . . . 3 . . purge_threat 8 | . . . . . . . . . . . . . . . . . . . . . . . 1 . . . . . . 5 2 . . map_route 1 | . . . . . . . . . . . . . . . . . . . 1 . . . . . . . . . . . . . . disable_scanner 8 | . . . . . . . . . . . . . . . . . . . . . . . . . . 1 . . . 7 . . . locate_prototypes 2 | . . . . . . . . . . . . . . . . . . . . . . . . . . . . . . 2 . . . disrupt_area 1 | . . . . . . . . . . . . . 1 . . . . . . . . . . . . . . . . . . . . overload_power 1 | . . . . . . . . . . . . . 1 . . . . . . . . . . . . . . . . . . . . wipe_record 1 | . . . . . . . . . . . . . . . . . . . . . . . . 1 . . . . . . . . . reboot_system 1 | . . . . . . . . . . . . . . . . . . . . . 1 . . . . . . . . . . . . overwrite_iff 52 | . . . . . . . . . . . . . . 5 . 6 . 11 . 4 2 8 2 6 2 . 4 . 2 . . . . streamctrl_high 1 | . . . . . . . . . . . . . . . . . . . . . . . . . . . . . 1 . . . . formatsys_low 2 | . . . . . . . . . . . . . . . . . . . . . . . . . . . . . . 1 1 . . formatsys_high 34 | . . . . . . . . . . . . . 1 . . 2 . . . 5 2 9 3 7 2 1 2 . . . . . . Relay Couplers Released 88 | . . . . . . . 3 . . . . . 8 4 . 6 . 10 3 20 . 16 4 8 . . 3 . . . 3 . . Ejected 11 | . . . . . . . . . . . . . 4 . . . . . 3 . . . 4 . . . . . . . . . . Machine Destruction 70 | . . . . . . . 3 . . . . . . 4 . 6 . 10 . 20 . 16 . 8 . . 3 . . . . . . Programmers 7 | . . . . . . . . . . . . . 4 . . . . . . . . . . . . . . . . . 3 . . Attached 51 | . . . . . . . . 1 . . . . 1 2 . 4 . 2 1 6 3 7 3 8 2 1 1 . 3 5 1 . . Robots Rewired 1 | . . . . . . . . . . . . . . . . . . . . . . . . . . . . . . . . 1 . Allies Hacked . | . . . . . . . . . . . . . . . . . . . . . . . . . . . . . . . . . . Hacks Repelled . | . . . . . . . . . . . . . . . . . . . . . . . . . . . . . . . . . . Allies | -11 -10 -10 -9 -9 -9 -8 -8 -7 -7 -7 -7 -6 -6 -6 -6 -6 -5 -5 -4 -4 -4 -4 -3 -3 -3 -3 -3 -2 -2 -2 -1 -1 -1 -------- Run | Scr Mat Min Mat Sto Gar Mat Gar Fac Low Low Dat Pro Fac Gar Fac Gar Fac Gar Fac Gar Fac Gar Res Gar Res Qua Gar Res Tes Sec Acc Com Ac0 Total Allies 117 | . . 6 . 12 . . . . . . . 1 1 5 . 8 . 11 1 9 5 17 6 12 5 1 7 . 6 1 2 1 . Largest Group 10 | . . 5 4 10 . . . . . . . 1 1 2 . 2 1 2 1 3 2 5 7 5 5 1 4 1 4 1 1 1 . Highest-Rated Group 344 | . . 79 71 93 . . . . . . . 95 88 64 . 61 32 24 10 150 105 239 344 235 235 26 116 64 268 45 6 224 . Highest-Rated Ally 224 | . . 31 31 31 . . . . . . . 95 88 32 . 32 32 12 10 56 58 49 64 64 56 26 64 64 69 45 6 224 . Total Orders 38 | . . 4 2 4 . . . . . . . . 3 . . . 2 . 4 . . 2 . . . . 1 . . . 1 5 10 STAY 10 | . . 2 . 2 . . . . . . . . . . . . . . . . . 1 . . . . 1 . . . 1 3 . ROAM 2 | . . . 1 1 . . . . . . . . . . . . . . . . . . . . . . . . . . . . . FOLLOW 7 | . . 2 1 1 . . . . . . . . . . . . . . . . . 1 . . . . . . . . . 2 . EXPLORE 12 | . . . . . . . . . . . . . 1 . . . 2 . 3 . . . . . . . . . . . . . 6 RETURN 7 | . . . . . . . . . . . . . 2 . . . . . 1 . . . . . . . . . . . . . 4 Ally Attacks 477 | . . 5 22 75 . . . . . . . 21 13 16 . 28 3 26 . 47 16 63 21 39 34 . 25 5 10 . . 8 . Total Damage 12111 | . . 65 280 891 . . . . . . . 608 152 312 . 581 131 286 . 1812 657 1836 432 981 1131 . 444 321 326 . . 865 . Kills 80 | . . 3 6 8 . . . . . . . 5 . 6 . . 2 4 . 11 3 10 2 10 5 . 3 . 1 . . 1 . Allies Corrupted 5 | . . . . . . . . . . . . . . . . . . . . . . . 2 . 3 . . . . . . . . Allies Melted 2 | . . . . . . . . . . . . . . . . 1 . . . . . . . . 1 . . . . . . . . Intel | -11 -10 -10 -9 -9 -9 -8 -8 -7 -7 -7 -7 -6 -6 -6 -6 -6 -5 -5 -4 -4 -4 -4 -3 -3 -3 -3 -3 -2 -2 -2 -1 -1 -1 ------- Run | Scr Mat Min Mat Sto Gar Mat Gar Fac Low Low Dat Pro Fac Gar Fac Gar Fac Gar Fac Gar Fac Gar Res Gar Res Qua Gar Res Tes Sec Acc Com Ac0 Robot Analysis Total 1 | . 1 . . . . . . . . . . . . . . . . . . . . . . . . . . . . . . . . Derelict Logs Recovered 5 | . . 2 . . . . . . 1 . . 2 . . . . . . . . . . . . . . . . . . . . . Drone Launches 20 | . . . . . . . . . . . . . 5 . . . 4 . 4 . . . . . . . . . . . . . 7 Drone Recoveries 16 | . . . . . . . . . . . . . 5 . . . 4 . 2 . . . . . . . . . . . . . 5 Exploration | -11 -10 -10 -9 -9 -9 -8 -8 -7 -7 -7 -7 -6 -6 -6 -6 -6 -5 -5 -4 -4 -4 -4 -3 -3 -3 -3 -3 -2 -2 -2 -1 -1 -1 ------------- Run | Scr Mat Min Mat Sto Gar Mat Gar Fac Low Low Dat Pro Fac Gar Fac Gar Fac Gar Fac Gar Fac Gar Res Gar Res Qua Gar Res Tes Sec Acc Com Ac0 Turns Passed 40220 | 361 2211 1308 659 1596 416 2219 401 1331 395 352 91 575 483 857 59 473 423 1284 941 1095 710 1285 462 1039 860 553 519 241 1696 1980 1342 10776 1227 Spaces Moved 20972 | 130 906 876 328 809 247 1115 161 611 329 275 80 377 223 358 45 210 197 672 397 615 395 735 360 502 486 285 196 126 830 847 574 6284 391 Core 9 | 9 . . . . . . . . . . . . . . . . . . . . . . . . . . . . . . . . . Treads 9443 | 82 722 160 . . 15 . . . . . . . . 2 . 5 . . . . . . . 3 240 285 196 126 830 40 62 6284 391 Legs 3061 | 39 184 716 165 . . . . . . . . . . . . . . 16 306 615 395 625 . . . . . . . . . . . Wheels 8455 | . . . 163 809 232 1115 161 611 329 275 80 377 223 356 45 205 197 656 91 . . 110 360 499 246 . . . . 803 512 . . Hover . | . . . . . . . . . . . . . . . . . . . . . . . . . . . . . . . . . . Flight . | . . . . . . . . . . . . . . . . . . . . . . . . . . . . . . . . . . Fastest Speed 50 | 50 120 120 105 105 120 120 130 115 115 115 115 115 115 115 130 130 130 130 120 120 120 105 106 122 120 153 153 155 152 130 129 145 148 Average Speed 138 | 142 151 127 118 119 141 133 130 120 115 115 115 118 129 120 130 145 130 140 124 120 120 118 119 123 144 153 153 155 160 145 136 151 164 Slowest Speed 770 | 200 160 160 135 135 460 135 130 130 115 115 115 130 130 670 130 770 130 440 200 120 120 200 122 370 165 153 153 155 165 266 252 250 266 Overloaded Moves . | . . . . . . . . . . . . . . . . . . . . . . . . . . . . . . . . . . Propulsion Burnouts . | . . . . . . . . . . . . . . . . . . . . . . . . . . . . . . . . . . Robots Hopped . | . . . . . . . . . . . . . . . . . . . . . . . . . . . . . . . . . . Cave-ins Triggered 2 | . . . . . . . . . . . . . . . . . . . . . . . . . . . . . . 1 . 1 . Teleports 5 | . . . . . . . . . . . . . . . . . . . . . . . . . . . . . . 4 . 1 . Spacefolds 2 | . . . . . . . . . . . . . . . . . . . . . . . . . . . . . . 2 . . . Exploration Rate (%) 46 | 5 95 99 28 88 50 83 36 14 50 54 70 64 11 60 3 49 4 70 12 62 15 81 14 41 18 56 47 9 94 72 23 76 35 Regions Visited 33 Branch Regions 11 Pre-discovered Areas 5 | . 2 1 . . . . . . . . 1 1 . . . . . . . . . . . . . . . . . . . . . Known Exits Taken 13 | . . . 1 1 . 1 . 1 . . . . 1 . 1 . 1 . 1 . 1 . 1 . 1 1 . 1 . . . . . Unknown Exits Taken 11 | 1 1 1 . . . . . . 1 1 1 1 . . . . . . . . . . . . . . . . 1 1 1 1 . Scrap Searched 8 | . . 1 . . . . . . 1 4 . 2 . . . . . . . . . . . . . . . . . . . . . Spaces Dug 95 | . 3 . . 1 . 11 . 13 . 1 . . 2 . . . . . . . 5 . . . 10 . . 2 26 15 . 6 . Terrain Destroyed 697 | . 5 . . 1 . 54 . 13 . 1 . . 2 . . . . 3 11 10 8 8 . 1 22 2 4 5 67 86 41 36 317 Melee 3 | . . . . . . . . 3 . . . . . . . . . . . . . . . . . . . . . . . . . Projectile 276 | . 5 . . 1 . 1 . 1 . 1 . . 2 . . . . 3 11 10 7 8 . 1 22 2 4 5 67 86 9 22 8 AOE 363 | . . . . . . 53 . 9 . . . . . . . . . . . . . . . . . . . . . . 32 14 255 Terrain Rammed . | . . . . . . . . . . . . . . . . . . . . . . . . . . . . . . . . . . Walls Destroyed . | . . . . . . . . . . . . . . . . . . . . . . . . . . . . . . . . . . Machines Disabled . | . . . . . . . . . . . . . . . . . . . . . . . . . . . . . . . . . . Actions | -11 -10 -10 -9 -9 -9 -8 -8 -7 -7 -7 -7 -6 -6 -6 -6 -6 -5 -5 -4 -4 -4 -4 -3 -3 -3 -3 -3 -2 -2 -2 -1 -1 -1 --------- Run | Scr Mat Min Mat Sto Gar Mat Gar Fac Low Low Dat Pro Fac Gar Fac Gar Fac Gar Fac Gar Fac Gar Res Gar Res Qua Gar Res Tes Sec Acc Com Ac0 Total 29301 | 237 1631 1025 596 1199 295 1651 318 1056 340 307 79 483 365 722 45 342 322 931 753 909 565 1073 389 781 587 379 324 152 1061 1340 996 7315 733 Wait 4361 | 24 614 79 221 197 25 368 87 314 1 23 . 95 79 282 . 58 85 93 234 155 60 177 . 49 24 35 38 1 62 174 193 476 38 Move 20941 | 129 905 875 327 809 245 1115 160 610 328 274 79 376 223 357 45 209 196 671 396 614 395 734 359 501 485 285 195 126 829 843 573 6282 391 Hop . | . . . . . . . . . . . . . . . . . . . . . . . . . . . . . . . . . . Pick Up 390 | 4 9 8 13 22 1 20 2 16 4 3 . . 12 7 . 8 1 16 16 18 16 19 3 10 6 14 8 . 18 31 16 57 12 Fast Attach 263 | 11 5 6 5 13 . 9 1 7 . . . . 1 1 . 1 8 6 14 14 7 16 5 5 8 2 6 4 16 21 10 37 24 Attach 315 | . 4 1 6 4 . 9 1 12 . . . 1 7 6 . 5 2 7 14 8 13 20 3 9 7 4 4 1 10 30 18 68 41 Detach 172 | 3 . . 4 2 . 1 1 5 . . . . 1 3 . . 1 2 3 3 5 10 3 3 11 2 1 . 5 20 11 38 34 Swap 360 | . 15 17 2 24 6 11 1 19 . 2 . 1 8 11 . 16 1 13 8 23 11 18 3 5 7 6 11 7 15 33 31 31 4 Drop 469 | 1 19 13 15 19 1 27 . 7 4 3 . . 8 7 . 4 6 17 24 29 19 12 5 10 6 15 15 3 33 32 16 89 10 Fire 1736 | 65 50 19 3 108 7 90 20 59 3 2 . 10 26 34 . 22 22 55 39 30 28 40 7 181 33 14 44 8 63 155 127 193 179 Melee 46 | . . . . . . . . 7 . . . . . . . . . . 2 10 8 19 . . . . . . . . . . . Ram 2 | . . . . 1 . 1 . . . . . . . . . . . . . . . . . . . . . . . . . . . Kick 10 | . . 6 . . . . . . . . . . . . . . . . 3 . 1 . . . . . . . . . . . . Crush 55 | . 10 1 . . . . . . . . . . . . . . . . . . . . . . . 2 . 2 10 . 1 29 . Escape Stasis 152 | . . . . . 10 . 45 . . . . . . 12 . 19 . 50 . 3 . 3 . 8 . . . . . 1 . 1 . Rewire 26 | . . . . . . . . . . . . . . . . . . . . 2 2 5 1 . . . 2 . . . . 14 . Trap 3 | . . . . . . . . . . . . . . 2 . . . 1 . . . . . . . . . . . . . . . Miscellaneous . | . . . . . . . . . . . . . . . . . . . . . . . . . . . . . . . . . . Route ------- -11/Scrapyard -10/Materials (discovered 4 exits: *Mat x3 / *Min) -10/Mines (discovered 2 exits: *Mat x2) -9/Materials (discovered 5 exits: *Mat / Min x2 / *Sto x2) -9/Storage (discovered 2 exits: *Mat / Gar) -9/Garrison (discovered 3 exits: *Mat x3) -8/Materials (discovered 4 exits: *Fac x3 / Gar) -8/Garrison -7/Factory (discovered 3 exits: *Fac / *Low x2) -7/Lower Caves -7/Lower Caves -7/Data Miner -6/Proximity Caves -6/Factory (discovered 3 exits: Fac / Gar / Gar) -6/Garrison (discovered 2 exits: *Fac x2) -6/Factory -6/Garrison -5/Factory (discovered 5 exits: Upp x2 / Ext x2 / Gar) -5/Garrison (discovered 3 exits: *Fac x3) -4/Factory -4/Garrison (discovered 3 exits: *Fac x3) -4/Factory (discovered 3 exits: Upp x2 / Gar) -4/Garrison (discovered 3 exits: *Res x3) -3/Research (discovered 3 exits: *Res / *Qua / Gar) -3/Garrison (discovered 2 exits: *Res x2) -3/Research (discovered 3 exits: Arm / *Qua x2) -3/Quarantine (discovered 2 exits: *Res / Gar) -3/Garrison -2/Research (discovered 2 exits: *Tes x2) -2/Testing (discovered 2 exits: *Acc / *Sec) -2/Section 7 -1/Access -1/Command (discovered 3 exits: [*Sur x2] / [*Ac0]) -1/Access_0 History --------- Turn | Location | Event 7 | -11/Scrapyard | Discovered new exit (range 15) 362 | -11/Scrapyard | Entered Materials 383 | -10/Materials | Build established: Mutant 1006 | -10/Materials | Discovered new exit (range 16) 1162 | -10/Materials | Repaired Assault Rifle 1326 | -10/Materials | Central database locked down 1341 | -10/Materials | Discovered new exit (range 7) 1569 | -10/Materials | Discovered new exit (range 16) 2407 | -10/Materials | Discovered new exit (range 14) 2573 | -10/Materials | Entered Mines 2580 | -10/Mines | Met a Derelict bent on vengeance 2599 | -10/Mines | Discovered new exit (range 11) 2687 | -10/Mines | Learned location of Zion (-6) 2689 | -10/Mines | Learned Materials stockpile data 2709 | -10/Mines | Joined a pair of Derelicts in attacking an 0b10 outpost 2944 | -10/Mines | Received a Mining Laser from a helpful Derelict 3102 | -10/Mines | Build established: Scavenger-Mutant 3364 | -10/Mines | Assisted by bots powering up and referring to "LRC-V3" 3473 | -10/Mines | Met a Derelict shopkeep closing up shop 3581 | -10/Mines | Discovered new exit (range 11) 3723 | -10/Mines | Found a hidden stash of uninstalled traps 3881 | -10/Mines | Entered Materials 3881 | -9/Materials | Accompanied by 4 allies 3881 | -9/Materials | Evolved 2 slots: Utility x1, Weapon x1 3886 | -9/Materials | Led the pair of lost Derelicts to an unsafe place 4180 | -9/Materials | Build established: Scavenger-Tank 4382 | -9/Materials | Discovered new exit (range 16) 4420 | -9/Materials | Discovered new exit (range 16) 4494 | -9/Materials | Build established: Tank 4499 | -9/Materials | Identified exit to Mines 4499 | -9/Materials | Identified exit to Storage 4540 | -9/Materials | Entered Storage 4540 | -9/Storage | Accompanied by 4 allies 4626 | -9/Storage | Garrison activated, responded to threat 4713 | -9/Storage | Lost 3 parts (1u2w) 4843 | -9/Storage | Destroyed 8 combat bots 5108 | -9/Storage | Build established: Scavenger-Tank 5297 | -9/Storage | Assisted by bots powering up and referring to "LRC-V3" 5354 | -9/Storage | Discovered new exit (range 5) 5550 | -9/Storage | Met a pair of Derelict thieves 5854 | -9/Storage | Build established: Tank 6133 | -9/Storage | Identified exit to Garrison 6136 | -9/Storage | Entered Garrison 6258 | -9/Garrison | Triggered checkpoint 6317 | -9/Garrison | Discovered new exit (range 10) 6340 | -9/Garrison | Identified exit to Materials 6382 | -9/Garrison | Triggered checkpoint 6406 | -9/Garrison | Discovered exit to Materials (range 10) 6520 | -9/Garrison | Discovered exit to Materials (range 12) 6542 | -9/Garrison | Installed Relay Interface Framework 6552 | -9/Garrison | Entered Materials 6552 | -8/Materials | Evolved 2 slots: Utility x2 6924 | -8/Materials | Repaired Disposable Heat Sink 7335 | -8/Materials | Repaired Arm. Wheel 7884 | -8/Materials | Discovered new exit (range 10) 8269 | -8/Materials | Discovered new exit (range 16) 8573 | -8/Materials | Discovered new exit (range 16) 8649 | -8/Materials | Garrison activated, responded to threat 8771 | -8/Materials | Identified exit to Garrison 8771 | -8/Materials | Entered Garrison 8783 | -8/Garrison | Lost 3 parts (1p1u1w) 8792 | -8/Garrison | Triggered checkpoint 8839 | -8/Garrison | Garrison Relay disabled 9084 | -8/Garrison | Triggered checkpoint 9149 | -8/Garrison | Discovered new exit (range 8) 9167 | -8/Garrison | Expanded RIF knowledge: Watcher Feeds 9172 | -8/Garrison | Entered Factory 9172 | -7/Factory | Evolved 2 slots: Propulsion x2 9246 | -7/Factory | Garrison activated, responded to threat 9572 | -7/Factory | Identified exit to Lower Caves 9877 | -7/Factory | Garrison activated, responded to threat 9972 | -7/Factory | First assault squad dispatched 9977 | -7/Factory | Discovered new exit (range 15) 10027 | -7/Factory | Repaired Broken Arm. Huge Wheel 10099 | -7/Factory | Lost 3 parts (1p1u1w) 10503 | -7/Factory | Entered Lower Caves 10702 | -7/Lower Caves | Learned Factory stockpile data 10774 | -7/Lower Caves | Discovered new exit (range 14) 10898 | -7/Lower Caves | Entered another Lower Caves area 11175 | -7/Lower Caves | Encountered a Warlord checkpoint 11235 | -7/Lower Caves | Discovered new exit (range 13) 11250 | -7/Lower Caves | Entered Data Miner 11250 | -7/Data Miner | Discovered new exit (range 6) 11272 | -7/Data Miner | Met Data Miner 11299 | -7/Data Miner | Learned location of Section 7 (-2) 11299 | -7/Data Miner | Acquired the access code to Warlord's prototype stash 11315 | -7/Data Miner | Received God Mode back door access code from Data Miner 11341 | -7/Data Miner | Entered Proximity Caves 11351 | -6/Proximity Caves | Learned 4 Factory zone layouts 11680 | -6/Proximity Caves | Escorted by Enhanced Grunt 11680 | -6/Proximity Caves | Attracted the attention of an 0b10 checkpoint 11896 | -6/Proximity Caves | Discovered new exit (range 11) 11916 | -6/Proximity Caves | Entered Factory 11916 | -6/Factory | Accompanied by 1 ally 11916 | -6/Factory | Evolved 2 slots: Propulsion x1, Utility x1 11917 | -6/Factory | Identified exit to Factory 11999 | -6/Factory | Identified exit to Garrison 12399 | -6/Factory | Identified exit to Garrison 12399 | -6/Factory | Entered Garrison 12724 | -6/Garrison | Build established: Scavenger-Tank 12862 | -6/Garrison | Triggered checkpoint 12863 | -6/Garrison | Triggered checkpoint 12928 | -6/Garrison | Discovered new exit (range 10) 13081 | -6/Garrison | Discovered new exit (range 8) 13096 | -6/Garrison | Expanded RIF knowledge: Zone Cloak 13138 | -6/Garrison | Triggered checkpoint 13163 | -6/Garrison | Build established: Gunner 13172 | -6/Garrison | Garrison Relay disabled 13256 | -6/Garrison | Entered Factory 13315 | -6/Factory | Identified exit to Garrison 13315 | -6/Factory | Entered Garrison 13322 | -6/Garrison | Expanded RIF knowledge: Alert ID Control 13358 | -6/Garrison | Triggered checkpoint 13417 | -6/Garrison | Garrison Relay disabled 13479 | -6/Garrison | Build established: Bothacker-Gunner 13500 | -6/Garrison | Triggered checkpoint 13644 | -6/Garrison | Triggered checkpoint 13665 | -6/Garrison | Discovered exit to Factory (range 13) 13712 | -6/Garrison | Triggered checkpoint 13728 | -6/Garrison | Garrison Relay disabled 13788 | -6/Garrison | Entered Factory 13788 | -5/Factory | Accompanied by 1 ally 13788 | -5/Factory | Evolved 2 slots: Propulsion x1, Utility x1 13995 | -5/Factory | Destroyed 7 combat bots 14098 | -5/Factory | Identified exit to Upper Caves 14098 | -5/Factory | Identified exit to Extension 14148 | -5/Factory | Identified exit to Garrison 14206 | -5/Factory | Build established: Bothacker-Tank 14211 | -5/Factory | Entered Garrison 14262 | -5/Garrison | Triggered checkpoint 14329 | -5/Garrison | Garrison Relay disabled 14404 | -5/Garrison | Triggered checkpoint 14492 | -5/Garrison | Discovered new exit (range 13) 14571 | -5/Garrison | Triggered checkpoint 14572 | -5/Garrison | Triggered checkpoint 14572 | -5/Garrison | Triggered checkpoint 14656 | -5/Garrison | Triggered checkpoint 14676 | -5/Garrison | Garrison Relay disabled 14851 | -5/Garrison | Lost 3 parts (1n1u1w) 14970 | -5/Garrison | Build established: Botlord-Tank 15245 | -5/Garrison | Discovered new exit (range 10) 15370 | -5/Garrison | Triggered checkpoint 15422 | -5/Garrison | Discovered new exit (range 15) 15450 | -5/Garrison | Expanded RIF knowledge: Autooverride 15495 | -5/Garrison | Entered Factory 15495 | -4/Factory | Evolved 2 slots: Utility x1, Weapon x1 15595 | -4/Factory | Fabricated O-16 Technician? 15617 | -4/Factory | Garrison activated, responded to threat 15845 | -4/Factory | Repaired Med. Reactive Plating 16004 | -4/Factory | Build established: Botlord-Gunner 16431 | -4/Factory | Identified exit to Garrison 16436 | -4/Factory | Entered Garrison 16448 | -4/Garrison | Triggered checkpoint 16540 | -4/Garrison | Triggered checkpoint 16553 | -4/Garrison | Garrison Relay disabled 16631 | -4/Garrison | Triggered checkpoint 16692 | -4/Garrison | Discovered new exit (range 14) 16816 | -4/Garrison | Triggered checkpoint 16830 | -4/Garrison | Garrison Relay disabled 16926 | -4/Garrison | Triggered checkpoint 16960 | -4/Garrison | Triggered checkpoint 17006 | -4/Garrison | Discovered new exit (range 13) 17074 | -4/Garrison | Triggered checkpoint 17158 | -4/Garrison | Garrison Relay disabled 17300 | -4/Garrison | Discovered new exit (range 10) 17323 | -4/Garrison | Expanded RIF knowledge: Program Shield 17408 | -4/Garrison | Triggered checkpoint 17463 | -4/Garrison | Garrison Relay disabled 17517 | -4/Garrison | Build established: Botlord-Tank 17531 | -4/Garrison | Entered Factory 17781 | -4/Factory | First assault squad dispatched 17860 | -4/Factory | Identified exit to Upper Caves 17928 | -4/Factory | Lost 3 parts (2u1w) 18046 | -4/Factory | Incoming assault squad redirected 18112 | -4/Factory | Garrison activated, responded to threat 18241 | -4/Factory | Identified exit to Garrison 18241 | -4/Factory | Entered Garrison 18284 | -4/Garrison | Triggered checkpoint 18297 | -4/Garrison | Garrison Relay disabled 18392 | -4/Garrison | P-70 Sage assimilated allied Sentinel 7a 18394 | -4/Garrison | P-70 Sage assimilated allied Sentinel 7b 18549 | -4/Garrison | Spotted B-86 Titan 18558 | -4/Garrison | Triggered checkpoint 18630 | -4/Garrison | Triggered checkpoint 18632 | -4/Garrison | Triggered checkpoint 18685 | -4/Garrison | Discovered new exit (range 8) 18754 | -4/Garrison | Triggered checkpoint 18794 | -4/Garrison | Garrison Relay disabled 18798 | -4/Garrison | Lost 4 parts (1n3w) 18893 | -4/Garrison | Destroyed B-86 Titan 18912 | -4/Garrison | Lost 4 parts (2n1u1w) 18941 | -4/Garrison | Discovered new exit (range 8) 18958 | -4/Garrison | Triggered checkpoint 18984 | -4/Garrison | Garrison Relay disabled 19098 | -4/Garrison | Discovered new exit (range 8) 19116 | -4/Garrison | Expanded RIF knowledge: Command Fork 19140 | -4/Garrison | Triggered checkpoint 19155 | -4/Garrison | Garrison Relay disabled 19242 | -4/Garrison | Triggered checkpoint 19362 | -4/Garrison | System corruption reached 10% 19369 | -4/Garrison | System corruption reached 30% 19526 | -4/Garrison | Entered Research 19526 | -3/Research | Accompanied by 4 allies 19526 | -3/Research | Evolved 2 slots: Power x1, Utility x1 19604 | -3/Research | Discovered new exit (range 15) 19630 | -3/Research | Build established: Botlord-Mutant 19936 | -3/Research | Discovered new exit (range 15) 19986 | -3/Research | Identified exit to Garrison 19988 | -3/Research | Entered Garrison 19988 | -3/Garrison | Accompanied by 1 ally 20064 | -3/Garrison | Triggered checkpoint 20107 | -3/Garrison | Garrison Relay disabled 20168 | -3/Garrison | P-80 Master assimilated allied Warden 8c 20270 | -3/Garrison | Triggered checkpoint 20292 | -3/Garrison | Triggered checkpoint 20339 | -3/Garrison | Discovered new exit (range 15) 20367 | -3/Garrison | Expanded RIF knowledge: Zone Cloak 20689 | -3/Garrison | Triggered checkpoint 20840 | -3/Garrison | Discovered new exit (range 13) 20902 | -3/Garrison | Triggered checkpoint 20925 | -3/Garrison | Garrison Relay disabled 21027 | -3/Garrison | Entered Research 21027 | -3/Research | Accompanied by 5 allies 21045 | -3/Research | Identified exit to Armory 21045 | -3/Research | Identified exit to Quarantine 21219 | -3/Research | Incoming investigation squad redirected 21229 | -3/Research | Fabricated Cargo Storage Unit (x1) 21887 | -3/Research | Entered Quarantine 21998 | -3/Quarantine | Found Alien Artifact 22016 | -3/Quarantine | Discovered new exit (range 19) 22079 | -3/Quarantine | Found Prototype Device 22089 | -3/Quarantine | Identified EM Disruption Field 22101 | -3/Quarantine | Found EM Disruption Field 22272 | -3/Quarantine | Found Alien Artifact 22272 | -3/Quarantine | Identified Dimensional Node Initializer 22272 | -3/Quarantine | Initialized slip node 22286 | -3/Quarantine | Found Alien Artifact 22288 | -3/Quarantine | Found Alien Artifact 22291 | -3/Quarantine | Found Alien Artifact 22296 | -3/Quarantine | Found Alien Artifact 22440 | -3/Quarantine | Identified exit to Garrison 22440 | -3/Quarantine | Entered Garrison 22440 | -3/Garrison | Accompanied by 1 ally 22490 | -3/Garrison | Triggered checkpoint 22532 | -3/Garrison | Garrison Relay disabled 22619 | -3/Garrison | Spotted B-86 Titan 22641 | -3/Garrison | Destroyed B-86 Titan 22670 | -3/Garrison | Triggered checkpoint 22719 | -3/Garrison | Triggered checkpoint 22736 | -3/Garrison | Triggered checkpoint 22821 | -3/Garrison | Build established: Botlord-Tank 22909 | -3/Garrison | Discovered new exit (range 15) 22948 | -3/Garrison | Expanded RIF knowledge: Threat Obfuscation 22959 | -3/Garrison | Entered Research 22959 | -2/Research | Accompanied by 1 ally 22959 | -2/Research | Evolved 2 slots: Propulsion x2 23010 | -2/Research | Identified exit to Testing 23200 | -2/Research | Entered Testing 23291 | -2/Testing | Found Prototype Energy Cannon 23291 | -2/Testing | Identified Potential Cannon 23301 | -2/Testing | Found Potential Cannon 23364 | -2/Testing | Found Prototype Energy Cannon 23364 | -2/Testing | Identified Cld. Nova Cannon 23546 | -2/Testing | Found Prototype Energy Cannon 23546 | -2/Testing | Identified Hpw. Disruptor Cannon 23631 | -2/Testing | Build established: Botlord-Mutant 23640 | -2/Testing | Found Prototype Device 23644 | -2/Testing | Identified Exp. Thermal Shield 23792 | -2/Testing | Found Prototype Ballistic Cannon 23800 | -2/Testing | Identified Omega Cannon 23898 | -2/Testing | Scanned by Researcher 23970 | -2/Testing | Discovered new exit (range 15) 24209 | -2/Testing | Build established: Botlord-Tank 24322 | -2/Testing | Found Prototype Processor 24325 | -2/Testing | Identified Exp. Targeting Computer 24345 | -2/Testing | Spotted Striker 24457 | -2/Testing | Spotted PY-6IW0JPIN8D 24719 | -2/Testing | Found Prototype Hackware 24722 | -2/Testing | Identified Exp. System Shield 24774 | -2/Testing | Spotted Fortress 24887 | -2/Testing | System corruption reached 10% 24888 | -2/Testing | Discovered new exit (range 6) 24896 | -2/Testing | Entered Section 7 24964 | -2/Section 7 | Identified Hpw. Transdimensional Reconstructor (x4) 24964 | -2/Section 7 | Warped through subspace 25046 | -2/Section 7 | Warped through subspace 25062 | -2/Section 7 | Warped through subspace 25154 | -2/Section 7 | Found Spacefold Activator 25178 | -2/Section 7 | Spotted S7 Guard 25186 | -2/Section 7 | Found Core Physics Calibrator 25187 | -2/Section 7 | Warped through subspace 25377 | -2/Section 7 | Spotted Executioner 25382 | -2/Section 7 | Spotted Executioner 25387 | -2/Section 7 | Incoming investigation squad redirected 25387 | -2/Section 7 | Destroyed Executioner 25390 | -2/Section 7 | Destroyed Executioner 25427 | -2/Section 7 | Found Prototype Device 25431 | -2/Section 7 | Found Prototype Processor 25432 | -2/Section 7 | Identified Adv. Kinecellerator 25453 | -2/Section 7 | Identified Exp. Targeting Computer 25513 | -2/Section 7 | Found Alien Artifact 25546 | -2/Section 7 | Found Alien Artifact 25558 | -2/Section 7 | Found Alien Artifact 25650 | -2/Section 7 | Identified Matter Drive (x2) 25688 | -2/Section 7 | Found Alien Artifact 25717 | -2/Section 7 | Identified Integrity Redistributor 25751 | -2/Section 7 | Found LRC Boosters 25751 | -2/Section 7 | Installed LRC Boosters, increased mass support (+10) 25754 | -2/Section 7 | Found LRC Storage 25754 | -2/Section 7 | Installed LRC Storage, increased inventory capacity (+2) 25858 | -2/Section 7 | Found Integrity Redistributor 25858 | -2/Section 7 | Used Integrity Redistributor, redistributed integrity from core (-130) 25861 | -2/Section 7 | Found Integrity Redistributor 25864 | -2/Section 7 | Found Integrity Redistributor 25897 | -2/Section 7 | Crushed by falling debris 25898 | -2/Section 7 | Core integrity fell below 50% 25948 | -2/Section 7 | Found Prototype Device 25948 | -2/Section 7 | Identified Exp. Force Field 25951 | -2/Section 7 | Found Exp. Force Field 25956 | -2/Section 7 | Found Exp. Force Field 26254 | -2/Section 7 | Build established: Hauler-Tank 26458 | -2/Section 7 | Spotted B-90 Cyclops 26544 | -2/Section 7 | Found Alien Artifact 26609 | -2/Section 7 | Build established: Hauler-Mutant 26731 | -2/Section 7 | Found Alien Artifact 26790 | -2/Section 7 | Found Integrity Redistributor 26861 | -2/Section 7 | Discovered new exit (range 11) 26876 | -2/Section 7 | Entered Access 26876 | -1/Access | Evolved 2 slots (calibrated): Power x1, Utility x3, -Weapon x2 26951 | -1/Access | Used Integrity Redistributor, redistributed integrity from core (-180) 26991 | -1/Access | Destroyed 7 combat bots 27842 | -1/Access | Found Fusion Bomb Launcher 27937 | -1/Access | Garrison activated, responded to threat 28206 | -1/Access | Discovered new exit (range 8) 28218 | -1/Access | Entered Command 28412 | -1/Command | Used Integrity Redistributor, redistributed integrity from core (-158) 28663 | -1/Command | Used Integrity Redistributor, redistributed integrity from core (-118) 28670 | -1/Command | Used Subatomic Replicator to replicate Integrity Redistributor 28749 | -1/Command | Identified Integrated Reactor 28749 | -1/Command | Installed Integrated Reactor, increased core energy generation (+10) 28771 | -1/Command | Spotted B-99 Colossus 29017 | -1/Command | Build established: Generator-Mutant 29359 | -1/Command | Spotted Combat Programmer 29435 | -1/Command | Met MAIN.C 29444 | -1/Command | 0b10 Conduit disabled 29588 | -1/Command | Found Prototype Ballistic Cannon 29588 | -1/Command | Identified Perforator 29595 | -1/Command | Found Prototype Reactor 29595 | -1/Command | Identified Vortex Chain Reactor 29603 | -1/Command | Found Prototype Device 29603 | -1/Command | Identified Exp. Transmission Jammer 29819 | -1/Command | Spotted B-99 Colossus 30311 | -1/Command | Discovered new exit (range 15) 30796 | -1/Command | Rewired B-99 Colossus 31075 | -1/Command | Found Prototype Processor 31075 | -1/Command | Identified Spectral Analyzer 31079 | -1/Command | Found Prototype Processor 31079 | -1/Command | Identified Exp. Armor Integrity Analyzer 31083 | -1/Command | Found Prototype Processor 31083 | -1/Command | Identified Exp. Core Analyzer 32569 | -1/Command | Allies destroyed MAIN.C Shell 32570 | -1/Command | MAIN.C activated Command garrisons 32613 | -1/Command | Destroyed MAIN.C 32850 | -1/Command | All MAIN.C guards destroyed 33843 | -1/Command | Spotted B-99 Colossus 35713 | -1/Command | Found Exp. Targeting Computer 36382 | -1/Command | Discovered new exit (range 8) 36632 | -1/Command | Destroyed B-99 Colossus 37035 | -1/Command | Crushed by falling debris 37995 | -1/Command | Used Integrity Redistributor, redistributed integrity from core (-80) 38124 | -1/Command | Found Vortex Chain Reactor 38686 | -1/Command | Found Exp. Targeting Computer 38986 | -1/Command | Identified Transdimensional Reconstructor 38986 | -1/Command | Warped through subspace to slip node 38986 | -1/Command | Discovered new exit (range 5) 38987 | -1/Command | Core integrity fell below 50% 38994 | -1/Command | Entered Access_0 38997 | -1/Access_0 | Met Architect 38998 | -1/Access_0 | Architect warped through subspace 39023 | -1/Access_0 | Destroyed A8 39036 | -1/Access_0 | Architect warped through subspace 39070 | -1/Access_0 | Architect warped through subspace 39100 | -1/Access_0 | Architect warped through subspace 39127 | -1/Access_0 | Architect warped through subspace 39152 | -1/Access_0 | Architect warped through subspace 39169 | -1/Access_0 | Architect warped through subspace 39191 | -1/Access_0 | Architect warped through subspace 39226 | -1/Access_0 | Architect warped through subspace 39236 | -1/Access_0 | Used Integrity Redistributor, redistributed integrity to core (+351) 39241 | -1/Access_0 | Architect warped through subspace 39265 | -1/Access_0 | Architect warped through subspace 39289 | -1/Access_0 | Architect warped through subspace 39294 | -1/Access_0 | A6 warped into view 39304 | -1/Access_0 | Destroyed A6 39324 | -1/Access_0 | Architect warped through subspace 39336 | -1/Access_0 | Subspace Access Node disabled 39354 | -1/Access_0 | Architect warped through subspace 39401 | -1/Access_0 | Lost 4 parts (1p3n) 39402 | -1/Access_0 | Architect warped through subspace 39416 | -1/Access_0 | Found Corrupted Prototype Device 39416 | -1/Access_0 | Identified Desublimator 39425 | -1/Access_0 | Found Corrupted Prototype Device 39430 | -1/Access_0 | System corruption reached 10% 39448 | -1/Access_0 | Architect warped through subspace 39490 | -1/Access_0 | Architect warped through subspace 39599 | -1/Access_0 | Architect warped through subspace 39619 | -1/Access_0 | Architect warped through subspace 39621 | -1/Access_0 | Found Exp. Targeting Computer 39626 | -1/Access_0 | Found Prototype Device 39626 | -1/Access_0 | Identified Exp. Weapon Cycler 39632 | -1/Access_0 | Found Exp. Targeting Computer 39658 | -1/Access_0 | Architect warped through subspace 39700 | -1/Access_0 | Architect warped through subspace 39749 | -1/Access_0 | Architect warped through subspace 39765 | -1/Access_0 | Found Exp. Targeting Computer 39785 | -1/Access_0 | Found Desublimator 39796 | -1/Access_0 | Architect warped through subspace 39818 | -1/Access_0 | Build established: Scavenger-Mutant 39825 | -1/Access_0 | Architect warped through subspace 39841 | -1/Access_0 | Found Prototype Device 39841 | -1/Access_0 | Identified Exp. Phase Shifter (x2) 39844 | -1/Access_0 | Found Exp. Targeting Computer 39866 | -1/Access_0 | Architect warped through subspace 39922 | -1/Access_0 | Subspace Access Node disabled 39935 | -1/Access_0 | Architect warped through subspace 39970 | -1/Access_0 | Architect warped through subspace 40006 | -1/Access_0 | Architect warped through subspace 40031 | -1/Access_0 | Architect warped through subspace 40054 | -1/Access_0 | Architect warped through subspace 40079 | -1/Access_0 | Architect warped through subspace 40110 | -1/Access_0 | Architect warped through subspace 40129 | -1/Access_0 | Lost 5 parts (1p1n3u) 40136 | -1/Access_0 | Architect warped through subspace 40147 | -1/Access_0 | A5 warped into view 40166 | -1/Access_0 | Architect warped through subspace 40198 | -1/Access_0 | Architect warped through subspace 40215 | -1/Access_0 | System corruption reached 30% 40219 | -1/Access_0 | Lost 3 parts (1n2u) 40221 | -1/Access_0 | Self-destructed Last Messages --------------- 40197_ HV Slug penetrates Wall. 40197_ HV Slug penetrates Architect. 40197_ HV Slug penetrates Wall. 40197_ HV Slug penetrates Architect. 40197_ HV Slug penetrates Wall. 40197_ HV Slug penetrates Architect. 40197_ HV Slug penetrates Wall. 40197_ HV Slug penetrates Architect. 40197_ HV Slug penetrates Wall. 40197_ HV Slug penetrates Architect. 40197_ Architect suffers critical hit (Destroy). 40197_ Destroyed Alien Energy Gun. 40197_ HV Slug penetrates Wall. 40197_ HV Slug penetrates Architect. 40197_ HV Slug penetrates Wall. Architect warps through subspace. 40199_ Acquired Exp. Biometal Leg. 40204_ System corrupted: Matter fused (-7). 40205_ Quantum Shear penetrates Wall. 40207_ Penetrated by Quantum Shear. Map ----- +----------------------------------------------------+ | ##??????????????????????????# "% ""###?? | | ##???????????????????????????# %"" ### | | #????????????????????????????###" % !% ##" | | ??## ????????????????????????# " %! | | ? ???????????????????????##" = % | | ??????????????????????#" !] #" | | ??????????????????????##""" " | | #### #???????????????????????## % # | | #???????????????????????????????## | | ##????????????????????????????????## """" | | ???????????????????????????????????## " "" | | #??????????????????????????????????#" """" " | | #??????????????# ??????????????????# """" | | #??????????????# ?????????????????# " " | | #??????????????# ?????????????????# "" """ | | #??????????????# ##???######??????# #""" " | | #??????????????# ??# ? ?????? ###""" " | | #??????????????# ??# ? ???? ?? " | | #??????????????# ??# #? ##??# ## ??# "" | | #???#####???#### ### #? ## #??## ???# """% | | #???# #"#?? #?# ## ## #????## ???##" "" | | ###?#"# ### #??# # #?????# ??## | | ## ##" #??# # ? #?????####?"" | | ###""" #????# # ; ;# ##?????????" | | " "" #????# ; # #?????# | | "!"!!] ###### ; @ #????? | | ! ]!! """ ## ;;##; #####????# | | "!!"!!" ########; ##### #???????? " | | # " "##??# #" #???? ??????? "#" | | # """ " # #???# " #???? #????? ### | | ##" """ "##???##" ###### ##????? ?# | | ? " "" #"##??# " " #?#####?????? ## | | ?## #"###" " " ###????????????? "# | | ## "" """ " #?????????????? "" | | # "" " # #???????????# ? " | | """" ## ###???????????? ## "" " | | ##"""" "" ### #??????????????#""##"% " | | ####### " ### #??????????????# " " | | ??????####"""" #?# #??????????????## " %" | | ???????# " "#??# #??????????????### "% | | ??????# ##"" ##???#" ???????????????# %= | | ????????# #### #?????# ??????????????# % ! | | ????????#????##" #?????? #?????????????##%"" | | ??????????????#" #???????"??????????????# # | | ???????????????" ?????????????????????#### | | ??????????????? ######???????????????????????# | | ??????????????? ##????????????????????????##### | | ???????????????## ##?????????????????????????# | | ?????????????????##??????????????????????????# ## | | ?????????????????????????????????????????????????? | +----------------------------------------------------+ Best States ------------- Heat Dissipation 128 Coolant Potential 120 Energy Generation 89 Energy Capacity 2750 Matter Stores 800 Matter Capacity 800 Sight Range 24 Terrain Scan Range 16 Terrain Scan Density 10 Jamming Range 22 Power Amplification 40 Corruption Prevention 12 Armor Coverage 675 Resistance: KI 30 Resistance: TH 30 Resistance: EM 50 Core Shielding 30 Power Shielding 66 Propulsion Shielding 66 Utility Shielding 66 Thermal Conversion 90 Weapon Cycling 30 Phase Shifting 20 Evasion (%) 60 Targeting Accuracy 60 Target Analysis 6 Armor Integrity Analysis 50 Recoil Reduction 8 Matter Filtering 30 Energy Filtering 30 Particle Charging 25 Offensive Hacking 20 Defensive Hacking 16 Relay Coupler Types 167 Relay Coupler Value 5 Item Schematics ----------------- Imp. Light Armor Plating | -9/Materials | Scanalyzed Arm. Wheel | -8/Materials | Scanalyzed Lgt. Treads | -8/Materials | Scanalyzed Reactive Plating | -8/Materials | Scanalyzed Drone Bay | -8/Materials | Scanalyzed Combat Drone Bay | -7/Data Miner | Free Lgt. Regenerative Plating | -7/Data Miner | Free Cmb. Gravmag System | -7/Data Miner | Free Exp. Terrain Scanner | -7/Data Miner | Free Exp. ECM Suite | -7/Data Miner | Free Kinetic Spear | -7/Data Miner | Free Cargo Storage Unit | -3/Research | Hacked Robot Schematics ------------------ M-13 Machinist | -10/Mines | Hacked O-16 Technician | -10/Mines | Hacked S-27 Virus | -7/Data Miner | Free G-50 Soldier | -7/Data Miner | Free L-41 Fighter | -7/Data Miner | Free X-72 Disruptor | -7/Data Miner | Free H-66 Slayer | -7/Data Miner | Free P-70 Sage | -7/Data Miner | Free I-36 Angel | -7/Data Miner | Free I-47 Archangel | -7/Data Miner | Free Fabricated ------------ O-16 Technician | x1 | -4/Factory Cargo Storage Unit | x1 | -3/Research Alien Tech Used ----------------- Dimensional Node Initializer High-powered Transdimensional Reconstructor Spacefold Activator Matter Drive LRC Boosters LRC Storage Integrity Redistributor Core Physics Calibrator Subatomic Replicator Integrated Reactor Transdimensional Reconstructor Achievements -------------- None Challenges ------------ None Game ------ Seed StormStasisBlaster Manual? 0 Play Time 05:09:55 Cumulative 2128.1 hours Start 2021.08.13 @ 22:10:15 End 2021.08.14 @ 13:48:25 Sessions 7 Manual Loads 0 Difficulty Rogue Special Mode None Game No. 2648 Rogue 2640 Adventurer 0 Explorer 8 Win Type - Total 239 Types 45/31/89/3/3/5/60/2/1 Lore% 100 Gallery% 99 Achievement% 100 Wizard Run 0 Options --------- ASCII 0 Keyboard 1 Movement Vi Keybinds 1 Fullscreen 1 Font 18/SmallcapsGlow Map View 76x50 Tactical HUD 1 Map Filters NONE Filters NONE Steam 1 RUN: be8a51d6-60bc-4118-9e87-cca269767998